Cogmind - Beta 11.1 @@@ ROGUE MODE // 2022.04.24 @ 23:24:04 Player: Runia Result: Establishing 0b11! Performance ------------- Evolutions (9) 4500 Regions Visited (36) 7200 Robots Destroyed (623) 3115 Value Destroyed (29061) 29061 Prototype IDs (279) 5580 Alien Tech Used (9) 1800 Bonus (20012) 20012 TOTAL SCORE: 71268 Bonus ------- High Alert Combat Kills 4332 Follower Combat Kills 2204 Entered Garrisons 400 Used RIF Installer 1000 Network Hubs Disabled 200 Met Data Miner 300 Met Zhirov 300 Built Enhanced Grunts 300 A7 Reached Mainframe 300 Met R17 at Cetus 500 Destroyed MAIN.C Guards 500 Met MAIN.C 5000 Hacked MAIN.C 300 Destroyed MAIN.C Shell 5000 Destroyed MAIN.C 10000 Met Architect 300 Destroyed A8 300 Destroyed A6 400 Win 3000 Friendly Fire -14624 Cogmind --------- Core Integrity 218/1600 Matter 272/300 Energy 14/100 System Corruption 8% Temperature Cool (0) Movement Core (50) Location 0b11 Command Parts ------- > --- POWER (4) -------- (None) > --- PROPULSION (6) --- (None) > --- UTILITY (13) ----- Advanced Terrain Scan Processor Advanced Weapon Cycler Graphene Brace > --- WEAPON (3) ------- (None) > --- INVENTORY (5) ---- Advanced Power Amplifier Experimental Coolant Injector Experimental EM Disruption Field Improved Remote Force Field Experimental System Purifier Peak State ------------ > --- POWER ------------ Quantum Reactor Zero-point Reactor Vortex Chain Reactor > --- PROPULSION ------- Improved Heavy Siege Treads Experimental Biometal Heavy Treads Enhanced Armored Heavy Treads > --- UTILITY ---------- Experimental Power Amplifier Coolant Network Experimental Coolant Injector Huge Storage Unit Advanced Terrain Scan Processor Experimental Targeting Computer Improved Armor Integrity Analyzer SHELL Armor Experimental EM Disruption Field Experimental System Purifier > --- WEAPON ----------- Enhanced Nova Cannon Sigix Broadsword > --- INVENTORY -------- Improved Heavy Siege Treads Biometal Heavy Treads Experimental Energy Well Experimental Energy Well Experimental Energy Well Experimental Energy Well Experimental Energy Well Experimental Matter Compressor Spectral Analyzer Improved Terrain Scanner Precision Matter Filter Particle Accelerator Graphene Brace Advanced Force Field High-powered Tractor Beam Transdimensional Reconstructor Subatomic Replicator Improved Potential Cannon Heavy Hardcell Cannon Advanced Remote Datajack Gamma Refractor [Rating: 257] Favorites ----------- Power Quantum Reactor Engine Light Angular Momentum Engine Power Core Enhanced Fission Core Reactor Quantum Reactor Propulsion Light Treads Treads Light Treads Leg Enhanced Flexi-carbon Leg Wheel Compact Wheel Utility Huge Storage Unit Device Improved Terrain Scanner Storage Huge Storage Unit Processor Advanced Terrain Scan Processor Hackware Experimental Hacking Suite Protection SHELL Armor Weapon Gauss Rifle Energy Gun Cooled Plasma Rifle Energy Cannon Enhanced Nova Cannon Ballistic Gun Gauss Rifle Ballistic Cannon Bore Cannon Launcher Tiamat Missile Launcher Special Weapon Improved Plasma Cutter Impact Weapon Powered Hammer Slashing Weapon Sigix Broadsword Special Melee Weapon Datajack Build | -11 -10 -10 -10 -9 -8 -8 -8 -7 -7 -7 -7 -7 -7 -6 -6 -6 -6 -6 -5 -5 -5 -5 -4 -4 -4 -4 -4 -4 -3 -3 -2 -2 -2 -1 -1 -1 ------- Run | Scr Mat Min Exi Min Mat Gar Mat Fac Was Fac Low Low Dat Pro Fac Was Fac Gar Fac Upp Upp Zhi Pro Fac Ext Cet Arc Hub Res Tes Res Qua Sec Acc Com Ac0 Slots Evolved 18 | . . . . . 4 . . 2 . . . . . . 2 . . . 2 . . . . 2 . . . . 2 . 2 . . 2 . . Power 3 | . . . . . . . . . . . . . . . 1 . . . . . . . . . . . . . 1 . . . . 1 . . Propulsion 4 | . . . . . 2 . . . . . . . . . . . . . . . . . . 2 . . . . . . . . . . . . Utility 10 | . . . . . 2 . . 1 . . . . . . 1 . . . 2 . . . . . . . . . 1 . 2 . . 1 . . Weapon 1 | . . . . . . . . 1 . . . . . . . . . . . . . . . . . . . . . . . . . . . . Parts Attached 868 | 2 14 2 1 10 27 23 33 7 18 27 16 11 3 9 50 17 5 25 46 4 7 46 11 25 19 15 13 13 20 79 6 43 42 48 110 21 Power 65 | . 2 . . 1 3 2 2 1 3 2 1 . . . 2 1 . 1 3 . . 1 1 3 . 2 1 . 1 3 . 8 2 3 13 3 Engine 14 | . 2 . . 1 3 2 2 1 . . . . . . 2 . . . . . . . . . . . . . . . . . . 1 . . Core 7 | . . . . . . . . . . . . . . . . . . 1 3 . . 1 1 1 . . . . . . . . . . . . Reactor 44 | . . . . . . . . . 3 2 1 . . . . 1 . . . . . . . 2 . 2 1 . 1 3 . 8 2 2 13 3 Propulsion 103 | 2 2 . . 2 8 6 12 . 3 . . 1 . 1 2 2 . 2 10 1 1 13 2 6 . 3 2 . 1 4 2 2 . 4 8 1 Treads 73 | 2 2 . . 2 7 4 10 . 3 . . . . 1 2 2 . 2 3 . 1 7 . . . 2 2 . 1 3 2 2 . 4 8 1 Leg 18 | . . . . . . 2 . . . . . . . . . . . . 2 . . 5 2 6 . 1 . . . . . . . . . . Wheel 12 | . . . . . 1 . 2 . . . . 1 . . . . . . 5 1 . 1 . . . . . . . 1 . . . . . . Hover . | . . . . . . . . . . . . . . . . . . . . . . . . . . . . . . . . . . . . . Flight . | . . . . . . . . . . . . . . . . . . . . . . . . . . . . . . . . . . . . . Utility 387 | . 4 . 1 2 6 8 12 3 4 12 6 4 . 4 28 4 3 8 12 2 3 13 4 9 7 4 6 7 13 44 4 29 27 22 60 12 Device 289 | . . . . . 3 2 5 2 3 6 3 2 . 2 16 3 3 4 8 1 2 8 2 6 6 2 6 6 11 37 3 28 26 20 52 11 Storage 9 | . 2 . 1 . 1 . 1 . . . . . . . 1 . . 1 . . . . . . . . . . . 1 . . . . 1 . Processor 21 | . . . . . . . 3 1 . 1 . . . . 4 . . . . . . . . . . 1 . 1 . . . 1 1 1 6 1 Hackware 13 | . . . . . 1 . 1 . 1 2 . . . . 2 . . 1 . . . 1 . . . . . . 1 2 . . . 1 . . Protection 55 | . 2 . . 2 1 6 2 . . 3 3 2 . 2 5 1 . 2 4 1 1 4 2 3 1 1 . . 1 4 1 . . . 1 . Artifact . | . . . . . . . . . . . . . . . . . . . . . . . . . . . . . . . . . . . . . Weapon 313 | . 6 2 . 5 10 7 7 3 8 13 9 6 3 4 18 10 2 14 21 1 3 19 4 7 12 6 4 6 5 28 . 4 13 19 29 5 Energy Gun 14 | . . . . 1 1 . . . . . . . . . . . . . 1 . . 5 . 2 2 1 . . . 1 . . . . . . Energy Cannon 74 | . . . . . . . 1 . . . . 1 . 1 2 1 1 . 4 1 1 3 2 3 5 1 . 3 2 10 . 4 5 8 13 2 Ballistic Gun 126 | . 4 1 . 2 7 7 4 2 4 9 4 3 3 2 9 3 . 7 11 . 1 6 . . . 4 2 2 3 10 . . 7 7 2 . Ballistic Cannon 9 | . . . . . . . . . . . . . . . . 1 . 1 . . . 1 . . . . . . . . . . . . 4 2 Launcher 41 | . 2 1 . 2 2 . . . 1 4 3 1 . 1 3 5 . 2 4 . . 1 2 2 1 . . . . 1 . . . 2 1 . Special Weapon 26 | . . . . . . . . . 3 . . . . . 1 . . 2 . . 1 3 . . 4 . 2 1 . 6 . . . 1 2 . Impact Weapon 10 | . . . . . . . . . . . 2 1 . . 3 . 1 2 1 . . . . . . . . . . . . . . . . . Slashing Weapon 10 | . . . . . . . . . . . . . . . . . . . . . . . . . . . . . . . . . 1 1 7 1 Piercing Weapon . | . . . . . . . . . . . . . . . . . . . . . . . . . . . . . . . . . . . . . Special Melee Weapon 3 | . . . . . . . 2 1 . . . . . . . . . . . . . . . . . . . . . . . . . . . . Unidentified Prototypes 42 | . 1 . . . 1 . 1 . 1 . 1 . . . 1 1 . 2 2 . . 4 . . . 2 . . 1 11 1 2 4 . 5 1 Corrupted Parts 9 | . . . . . . . . . . . . . . . . . . . . . . . 1 . . 3 1 1 . . . . . . 1 2 System Corruption 36 | . . . . . . . . . . . . . . . . . . . . . . . 1 . . 14 4 3 . . . . . . 7 7 Parts Lost 63 | . . . . 4 4 15 2 . . 1 . 2 . 2 3 1 . . 4 . 1 1 . . . 1 . . . 1 . . 1 . 5 15 Power 11 | . . . . 1 . 2 . . . . . . . . 1 . . . . . . . . . . 1 . . . . . . . . 3 3 Propulsion 16 | . . . . 1 2 5 1 . . . . . . . 1 . . . 2 . . . . . . . . . . . . . . . . 4 Utility 21 | . . . . 1 . 5 1 . . 1 . 1 . 1 1 1 . . 2 . . . . . . . . . . 1 . . 1 . 1 4 Weapon 15 | . . . . 1 2 3 . . . . . 1 . 1 . . . . . . 1 1 . . . . . . . . . . . . 1 4 Highest Loss Streak 11 | . . . . 4 2 7 1 . . 1 . 2 . 1 1 1 . . 3 . 1 1 . . . 1 . . . 1 . . 1 . 3 11 To Critical Strikes 3 | . . . . . . . . . . . . . . . . . . . . . . . . . . . . . . . . . . . . 3 Average Slot Usage (%) 84 | . 97 100 100 94 95 90 99 99 93 81 83 84 67 84 87 86 87 88 84 87 88 83 99 98 100 91 86 89 86 85 79 78 74 75 70 60 Engine 2 | . 14 14 14 9 9 8 9 7 1 . . . . . 6 7 6 . . . . . . . . . . . . . . . . . . . Core 1 | . . . . . . . . . . . . . . . . . . 5 6 11 11 11 11 7 5 1 . . . . . . . . . . Reactor 6 | . . . . . . . . . 5 6 6 7 7 7 5 4 6 6 3 . . . . 2 5 8 10 10 9 13 12 11 12 14 12 9 Treads 14 | . 28 28 28 28 32 19 33 30 24 15 14 12 7 7 7 12 12 13 11 16 16 10 . . . 8 19 20 18 17 12 12 12 11 11 9 Leg 2 | . . . . . . 8 1 . . . . . . . . . . . . . . 8 21 29 30 12 . . . . . . . . . . Wheel 1 | . . . . . . 1 1 . . . . 1 7 7 5 . . . 5 5 5 2 . . . . . . . . . . . . . . Device 11 | . . . . . 12 9 8 6 3 6 5 6 7 12 8 6 6 4 11 11 11 10 20 17 20 15 11 15 13 9 16 15 16 14 17 17 Storage 5 | . 14 14 14 14 9 9 9 7 7 7 7 7 7 7 6 6 6 6 5 5 5 5 5 5 5 5 5 5 4 4 4 4 4 3 3 3 Processor 11 | . . . . . . . 11 15 11 9 14 14 14 14 17 18 18 17 11 11 11 11 11 10 10 15 15 15 18 13 12 12 11 15 12 7 Hackware 3 | . . . . . 4 . 3 . 6 7 . . . . 3 6 6 6 5 5 5 5 5 5 5 5 5 5 4 7 4 4 4 3 . . Protection 5 | . 11 14 14 14 9 16 3 7 7 4 8 14 14 8 6 4 6 7 5 4 5 4 6 6 5 5 5 5 4 4 4 4 4 3 3 2 Energy Gun 1 | . 4 . . 4 . . . . . . . . . . . . . . 3 2 . 2 11 9 9 2 . . . . . . . . . . Energy Cannon 1 | . . . . . . . 1 . . . . . . 2 3 . . . . 2 2 . 4 5 3 1 . 3 1 3 4 6 1 . 2 6 Ballistic Gun 9 | . 23 27 28 22 17 17 15 21 21 22 21 18 3 18 13 10 12 16 11 11 11 7 . . . 11 10 11 11 9 8 5 2 2 . . Naked Turns . | . . . . . . . . . . . . . . . . . . . . . . . . . . . . . . . . . . . . . Heaviest Build 255 | 11 35 35 55 57 60 60 99 111 114 122 128 132 122 123 140 143 138 145 149 137 138 175 148 157 153 160 153 169 184 198 205 216 216 245 255 253 Greatest Support 255 | 40 46 46 46 46 86 60 80 80 140 140 140 140 28 28 126 140 140 140 113 16 16 116 116 176 174 174 216 216 216 240 240 240 240 240 255 255 Greatest Overweight (x) 48 | . . . 1 1 4 15 2 1 1 . . 4 4 4 4 1 . 1 14 8 8 10 1 1 . 1 48 . . . 1 . . 1 1 6 Average Overweight (x) 1 | . . . . 1 . 1 . 1 . . . 1 3 4 3 . . . 6 7 7 3 1 . . . 12 . . . . . . . . . Largest Inventory Capacity 25 | 8 15 15 20 20 20 20 25 25 25 25 25 25 25 25 25 25 25 25 25 25 25 25 25 25 25 25 25 25 25 25 25 25 25 25 25 25 Average Capacity 23 | 8 11 15 18 20 20 20 20 25 25 25 25 25 25 25 25 25 25 25 25 25 25 25 25 25 25 25 25 25 25 25 25 25 25 25 25 24 Most Carried 25 | 6 12 13 14 14 20 20 20 23 25 25 24 24 25 24 25 25 25 25 25 25 25 25 25 25 25 25 25 25 25 25 25 25 25 25 25 25 Average Carried 23 | 4 9 12 13 11 16 17 19 22 24 24 23 23 24 22 24 24 24 24 24 24 24 23 24 24 24 24 24 24 24 24 23 24 23 22 24 22 Final Capacity 25 | 8 15 15 20 20 20 20 25 25 25 25 25 25 25 25 25 25 25 25 25 25 25 25 25 25 25 25 25 25 25 25 25 25 25 25 25 5 Final Carried 25 | 2 12 13 13 11 19 19 20 23 25 25 23 24 24 24 25 25 25 25 25 25 25 25 24 25 25 25 25 25 25 25 24 25 22 24 25 5 Class Distribution -------------------- 24% | Generator-Mutant 23% | Scavenger-Mutant 16% | Scavenger-Skirmisher 8% | Scavenger-Tank 8% | Scavenger-Gunner 7% | Mutant 3% | Generator-Assassin 3% | Generator-Gunner Dominant Class ---------------- Mutant | -10/Materials Mutant | -10/Mines Mutant | -10/Exiles Mutant | -9/Mines Scavenger-Mutant | -8/Materials Scavenger-Mutant | -8/Garrison Scavenger-Mutant | -8/Materials Scavenger-Tank | -7/Factory Scavenger-Tank | -7/Waste Scavenger-Skirmisher | -7/Factory Scavenger-Skirmisher | -7/Lower Caves Scavenger-Tank | -7/Lower Caves Mutant | -7/Data Miner Scavenger-Skirmisher | -6/Proximity Caves Scavenger-Skirmisher | -6/Factory Gunner | -6/Waste Scavenger-Mutant | -6/Factory Scavenger-Tank | -6/Garrison Scavenger-Skirmisher | -5/Factory Scavenger-Skirmisher | -5/Upper Caves Scavenger-Skirmisher | -5/Upper Caves Scavenger-Gunner | -5/Zhirov Scavenger-Skirmisher | -4/Proximity Caves Scavenger-Tank | -4/Factory Commander-Mutant | -4/Extension Scavenger-Gunner | -4/Cetus Scavenger-Mutant | -4/Archives Scavenger-Mutant | -4/Hub_04(d) Scavenger-Skirmisher | -3/Research Scavenger-Mutant | -3/Testing Generator-Mutant | -2/Research Generator-Mutant | -2/Quarantine Generator-Mutant | -2/Section 7 Generator-Assassin | -1/Access Generator-Mutant | -1/Command Generator-Mutant | -1/Access_0 Resources | -11 -10 -10 -10 -9 -8 -8 -8 -7 -7 -7 -7 -7 -7 -6 -6 -6 -6 -6 -5 -5 -5 -5 -4 -4 -4 -4 -4 -4 -3 -3 -2 -2 -2 -1 -1 -1 ----------- Run | Scr Mat Min Exi Min Mat Gar Mat Fac Was Fac Low Low Dat Pro Fac Was Fac Gar Fac Upp Upp Zhi Pro Fac Ext Cet Arc Hub Res Tes Res Qua Sec Acc Com Ac0 Matter Collected 25670 | 200 297 40 100 254 543 714 867 181 1423 749 787 249 . 211 1900 745 200 831 1287 113 399 1557 596 308 354 378 480 . 664 1755 561 716 1266 1289 3432 224 Remotely 3556 | . . . . . . . . . . . 30 . . . 164 745 . 280 . . . . . . . . . . . 163 180 267 . . 1727 . Salvage Created 35732 | . 639 37 . 82 908 931 1590 245 1511 1146 462 173 . 24 2525 1438 42 760 1584 43 357 1179 468 1072 859 389 892 284 949 2343 457 1387 3091 3171 3967 727 Parts 1635 | . 45 8 . 4 50 61 89 13 22 44 18 9 . 3 114 11 . 30 84 1 11 57 6 55 15 19 66 29 44 116 24 72 144 181 158 32 Haulers Intercepted 20 | . 2 . . . 1 . 5 1 . 1 . . . . 3 . . . 2 . . . . 1 1 . . . 1 . . . 1 1 . . Recyclers Shooed 30 | . 1 . . 1 3 . 1 1 . 1 . . . . 6 . 1 . 4 . . . . 3 . . . . 1 . 2 . . 3 2 . Parts Field Recycled 20 | . . . . . . . 10 . . . . . . . . . . . . . . . . . . . . . . 10 . . . . . . Retrieved Matter 269 | . . . . . . . 77 . . . . . . . . . . . . . . . . . . . . . . 192 . . . . . . Parts Self-Destructed 47 | . . . . . . . . . . . 11 8 . 9 . . . . . . 3 10 6 . . . . . . . . . . . . . Prevented 5 | . . . . . . . . . . . 1 4 . . . . . . . . . . . . . . . . . . . . . . . . Kills | -11 -10 -10 -10 -9 -8 -8 -8 -7 -7 -7 -7 -7 -7 -6 -6 -6 -6 -6 -5 -5 -5 -5 -4 -4 -4 -4 -4 -4 -3 -3 -2 -2 -2 -1 -1 -1 ------- Run | Scr Mat Min Exi Min Mat Gar Mat Fac Was Fac Low Low Dat Pro Fac Was Fac Gar Fac Upp Upp Zhi Pro Fac Ext Cet Arc Hub Res Tes Res Qua Sec Acc Com Ac0 Combat Hostiles Destroyed 433 | . 15 3 . 12 17 25 20 3 5 24 12 3 . 2 24 6 1 19 18 . 1 . 10 21 10 4 3 1 8 25 1 15 34 37 40 14 Melee 3 | . . . . . . . . . . . . . . . . . . . . . . . . . . . . . . . . . . . 3 . Guns 254 | . 10 1 . 2 11 25 18 3 5 8 5 2 . . 14 . . 8 7 . . . 3 10 1 4 3 . 8 21 1 10 34 32 8 . Cannons 48 | . . . . . . . 2 . . . . . . . 3 . 1 . . . 1 . 1 2 6 . . . . 2 . 5 . 1 14 10 AOE 117 | . 5 2 . 10 6 . . . . 16 7 1 . 2 7 6 . 11 9 . . . 5 7 1 . . . . 2 . . . 4 14 2 Classes Destroyed 28 | . 6 1 . 1 3 . 1 1 1 1 . . . . 3 . . 1 . 1 1 . 1 . 1 . . . . 2 . 1 1 1 . . Worker 40 | . . 2 . . 1 . 4 . . 1 . . . . 3 . . . 3 . . . . 2 . . . 5 2 4 1 1 . 8 3 . Builder 30 | . . . . . 1 . 1 . . . . . . . 5 . . . 5 . . . . 1 . . . 3 2 3 3 . . 6 . . Tunneler 3 | . . . . . . . . . . . . . . . 1 . . . . . . . . . . . . 2 . . . . . . . . Hauler 20 | . 2 . . . 1 . 5 1 . 1 . . . . 3 . . . 2 . . . . 1 1 . . . 1 . . . 1 1 . . Recycler 42 | . 1 . . . 3 . 3 1 . 4 . . . . 7 . . . 4 . . . . 1 . . . . 1 3 2 2 2 2 6 . Mechanic 5 | . . . . . . . . . . . . . . . 1 . . . . . . . . . 1 . . . . 1 . . . . 2 . Operator 17 | . 2 . . . 1 . 1 . . 1 . . . . . . . . . . . . . . . . 8 1 . . . 1 1 1 . . Watcher 20 | . 2 . . . . . 4 . . 1 . . . . 2 . . . 1 . . . . 1 . 1 . . . 1 . . 2 1 4 . Swarmer 86 | . 7 3 . 1 6 11 5 1 . 4 4 . . 2 3 . . 6 4 . . . . 12 . . . . . . . . 5 4 8 . Cutter 3 | . . . . . . . . . . . . . . . . . . . . . . . . . . . . . . . . . . 3 . . Grunt 135 | . 8 . . 1 6 9 6 . . 14 6 2 . . 15 . 1 9 3 . . . 6 2 6 1 . . 1 15 . 4 9 8 3 . Brawler 7 | . . . . . . . . . . 1 . . . . . . . 1 . . . . 1 . . . . . . 1 . . 1 2 . . Duelist 6 | . . . . . . . 1 . . 2 . . . . . . . 1 . . . . 1 . . . . . . . . . . . 1 . Protector 3 | . . . . . . . . . . . . . . . . . . . . . . . 1 . . . . . . . . . . . 2 . Researcher 1 | . . . . . . . . . . . . . . . . . . . . . . . . . . . . . . 1 . . . . . . Sentry 53 | . . . . . 4 5 5 1 . 2 1 1 . . 1 . . 2 2 . . . 1 1 2 . 3 1 4 . 1 3 6 2 5 . Demolisher 1 | . . . . . . . . . . . . . . . . . . . . . . . . . 1 . . . . . . . . . . . Specialist 1 | . . . . . . . . . . . . . . . . . . . . . . . . . . . . . . 1 . . . . . . Hunter 24 | . . . . . 1 . 3 . . . 1 . . . 1 . . . 5 . . . . . . 1 . . . . . . 4 4 4 . Programmer 61 | . . . . . . . . 1 . 1 . . . . 3 . . . 4 . . . . 6 . . . . 3 7 . 7 7 13 9 . Heavy 3 | . . . . . . . . . . . . . . . 1 . . . . . . . . . . . . . . . . . . 1 1 . Behemoth 2 | . . . . . . . . . . . . . . . . . . . . . . . . . 1 . . . . . . . . . 1 . Compactor 11 | . . . . . . . . . 5 . . . . . . 6 . . . . . . . . . . . . . . . . . . . . Cetus Guard 2 | . . . . . . . . . . . . . . . . . . . . . . . . . . 2 . . . . . . . . . . M Guard 2 | . . . . . . . . . . . . . . . . . . . . . . . . . . . . . . . . . . . 2 . Enhanced Grunt 17 | . . . . . . . . . . . . . . . 1 . . . . . . 8 . . . . 3 . . . . . . . . 5 Enhanced Hunter 7 | . . . . . . . . . . . . . . . . . . . . . . . . . . . . . . . . . . . . 7 Combat Programmer 2 | . . . . . . . . . . . . . . . . . . . . . . . . . . . . . . . . . . . 2 . Executioner 2 | . . . . . . . . . . . . . . . . . . . . . . . . . . . . . . . . . 2 . . . Alpha 7 1 | . . . . . . . . . . . . . . . . . . . . . . . . . . . . . . . . 1 . . . . Protovariant G 1 | . . . . . . . . . . . . . . . . . . . . . . . . . . . . . . 1 . . . . . . Samaritan 1 | . . . . . . . . . . . . . . . . . . . . 1 . . . . . . . . . . . . . . . . Assembled 10 | . . . . 10 . . . . . . . . . . . . . . . . . . . . . . . . . . . . . . . . Thug 1 | . . . . . . . . . . . . . . . . 1 . . . . . . . . . . . . . . . . . . . . Savage 3 | . . . . . . . . . . . . . . . . . . . . . 3 . . . . . . . . . . . . . . . Butcher 1 | . . . . . . . . . . . . . . . . . . . . . 1 . . . . . . . . . . . . . . . Martyr 2 | . . . . . . . . . . . . . . . . . . 2 . . . . . . . . . . . . . . . . . . Guerrilla 1 | . . . . . . . . . . . . . . . . . . . . . . . . . . 1 . . . . . . . . . . Mutant 1 | . . . . . . . . . . . . . . . . . . . . . 1 . . . . . . . . . . . . . . . Best Kill Streak 14 | . 5 4 . 9 4 7 5 2 1 14 5 2 . 2 12 4 1 9 7 . 1 1 5 7 3 1 5 12 4 5 6 7 9 11 11 3 Combat Bots Only 10 | . 5 3 . 9 4 7 4 1 1 10 5 2 . 2 9 4 1 9 5 . 1 . 5 4 2 1 2 1 3 4 1 7 9 8 10 3 Max Kills in Single Turn 11 | . 2 2 . 4 4 2 1 1 1 7 3 1 . 2 3 1 1 4 3 1 1 1 2 7 1 1 1 11 2 4 3 2 2 4 4 1 Gunslinging 1 | . . . . . . 1 . . . . . . . . 1 . . . . . . . . . . . . . . . . . . . . . Exploded 7 | . 2 2 . 4 4 . . . . 7 3 1 . 2 2 1 . 4 3 . . . 2 4 1 . . . . 1 . . . 4 3 1 Melee 1 | . . . . . . . . . . . . . . . . . . . . . . . . . . . . . . . . . . . 1 . Uniques/NPCs Destroyed 6 | . . . . . . . . . . . . . . . . . . . . . . 2 . . . . . . . . . . . . 2 2 Svarog (-5/Zhirov) Perun (-5/Zhirov) MAIN.C Shell (-1/Command) MAIN.C (-1/Command) A8 (-1/Access_0) A6 (-1/Access_0) Combat | -11 -10 -10 -10 -9 -8 -8 -8 -7 -7 -7 -7 -7 -7 -6 -6 -6 -6 -6 -5 -5 -5 -5 -4 -4 -4 -4 -4 -4 -3 -3 -2 -2 -2 -1 -1 -1 -------- Run | Scr Mat Min Exi Min Mat Gar Mat Fac Was Fac Low Low Dat Pro Fac Was Fac Gar Fac Upp Upp Zhi Pro Fac Ext Cet Arc Hub Res Tes Res Qua Sec Acc Com Ac0 Damage Taken 37784 | . 370 77 . 808 1408 2093 1093 136 . 1585 336 652 . 694 1768 140 48 826 1253 . 213 597 957 867 747 447 131 48 418 1275 49 1266 1370 1382 6271 8459 Core 3137 | . 38 25 . 183 143 233 125 8 . 204 58 27 . 52 154 . . 31 143 . . 53 69 56 33 14 . . 34 86 . 42 60 32 236 998 Absorbed by Shields 14660 | . . . . . . . . 64 . . . . . . 65 . . 230 317 . . . . . 58 85 . 48 443 1327 50 1287 1195 986 5062 3443 Reduced by Siege Mode 856 | . . . . . . . . . . . . 21 . 24 . . . . . . . . . . . . . . . 14 . 33 16 12 664 72 Redirected to Shielding 13 | . . . . . . . . . . . . . . . 13 . . . . . . . . . . . . . . . . . . . . . Regen/Repaired (Parts) 7673 | . . . . . 117 . . . . . . . . . . . . . . . . . . 949 . . . . . 341 . 493 858 804 3166 945 Core Remaining (%) 56 | 100 . . . 1 . . 8 . . . . . . 50 . . . 78 . . . . 73 . . . . 91 . 90 . . 65 . . 13 Volleys Fired 2064 | . 59 4 . 21 102 100 97 13 85 55 22 17 . 14 119 23 8 38 63 12 46 103 16 53 51 23 106 11 27 110 20 77 79 116 250 124 Largest 3 | . 2 2 . 2 2 2 2 3 3 3 3 3 . 3 3 2 3 3 3 3 3 3 3 3 3 3 3 1 3 3 2 2 1 1 2 2 Hottest 282 | . 60 40 . 70 43 45 90 75 75 84 84 84 . 81 145 89 118 109 91 90 151 96 225 225 282 269 105 113 105 205 170 170 120 200 200 200 Shots Fired 3747 | . 114 7 . 36 200 199 194 39 230 132 53 36 . 36 288 24 10 87 158 22 51 276 38 127 91 61 157 11 81 228 25 113 80 116 301 126 Gun 2759 | . 110 6 . 30 196 199 165 39 223 125 49 32 . 34 235 . 2 81 142 14 6 256 21 74 40 51 81 . 81 156 5 37 72 94 103 . Cannon 657 | . . . . . . . 29 . . . . 1 . . 29 . 8 1 5 8 12 2 11 51 25 10 . 11 . 53 20 76 8 19 152 126 Launcher 93 | . 4 1 . 6 4 . . . . 7 4 3 . 2 6 24 . 5 11 . . . 6 2 2 . . . . 4 . . . 1 1 . Special 238 | . . . . . . . . . 7 . . . . . 18 . . . . . 33 18 . . 24 . 76 . . 15 . . . 2 45 . Kinetic 2652 | . 97 6 . 26 196 199 165 39 223 125 49 32 . 34 235 . 9 82 100 10 6 236 . . . 41 81 . 81 156 5 37 72 94 209 7 Thermal 933 | . . . . 4 . . 29 . . . . 1 . . 47 . 1 . 47 12 45 37 32 125 65 20 76 11 . 53 20 76 8 19 90 115 Explosive 84 | . 4 1 . 6 4 . . . . 6 2 . . 2 6 24 . 5 8 . . . 6 2 2 . . . . 4 . . . 1 1 . Electromagnetic 26 | . 13 . . . . . . . . 1 2 3 . . . . . . 3 . . . . . . . . . . . . . . . . 4 Robot Hit Streak 57 | . 8 4 . 12 15 22 10 18 22 11 10 10 . 10 21 21 3 13 28 3 42 37 14 15 13 7 18 . 20 23 15 55 32 19 46 57 Robot Miss Streak 6 | . 3 1 . 3 3 4 5 2 3 3 5 1 . 2 4 1 1 1 5 1 . 4 2 6 3 4 5 . 2 5 1 1 3 3 4 4 Penetration Max 2 | . . . . . . . . . . 1 . . . . 1 . 1 . 1 . . 1 . . . 1 1 . 1 1 2 1 1 2 1 . Secondary Targets 22 | . . . . . . 9 . . 3 1 . . . . 4 . . . . . . 2 . . . 2 . . . 1 . . . . . . Max Gunslinging Chain 1 | . . . . . . 1 . . 1 1 . . . . 1 . . . . . . 1 . . . 1 . . . 1 . . . . . . Capacitor 115 | . . . . . . . . . . . . . . . . . . . . . . . . . . . . . . . . . . . . 115 Shots Hit Robots 2675 | . 70 5 . 25 147 129 117 28 174 80 31 29 . 26 209 22 4 68 115 9 40 218 27 67 71 38 112 . 63 141 10 63 72 95 288 82 Core Hits 1464 | . 38 5 . 32 61 50 58 9 26 50 20 8 . 4 96 15 2 44 59 3 14 73 30 48 25 15 51 20 27 77 9 48 62 114 224 47 Critical Kills 161 | . . . . . . 1 . . . 1 . 1 . . 3 . 1 . 1 . . 2 . 1 2 3 7 . 5 16 5 12 40 46 12 2 Critical Parts Destroyed 222 | . . . . . 1 1 . . 1 1 3 1 . 1 3 . 2 1 1 . . . . 2 1 4 7 . 7 29 5 23 38 52 36 2 Critical Strikes 441 | . . . . 1 1 2 . . 2 2 3 2 . 1 6 . 3 1 5 . 4 8 . 9 5 8 18 . 12 46 10 38 82 101 67 4 Burn 14 | . . . . 1 . . . . . . . . . . . . . . 3 . . 2 . 6 2 . . . . . . . . . . . Meltdown 4 | . . . . . . . . . . . . . . . . . . . . . . . . 1 1 . . . . . 1 . . . . 1 Destroy 414 | . . . . . 1 2 . . 2 2 3 2 . 1 6 . 3 1 2 . . 6 . 2 2 8 14 . 12 46 9 38 82 101 66 3 Sever 9 | . . . . . . . . . . . . . . . . . . . . . 4 . . . . . 4 . . . . . . . 1 . Melee Attacks 75 | . . . . . . . 6 1 . . 2 4 . . 2 . 4 4 1 . . . . . . . . . . . . . 15 9 27 . Impact 17 | . . . . . . . . . . . 2 4 . . 2 . 4 4 1 . . . . . . . . . . . . . . . . . Slashing 51 | . . . . . . . . . . . . . . . . . . . . . . . . . . . . . . . . . 15 9 27 . Piercing . | . . . . . . . . . . . . . . . . . . . . . . . . . . . . . . . . . . . . . Sneak Attacks 9 | . . . . . . . 4 1 . . . . . . . . . 4 . . . . . . . . . . . . . . . . . . Combat Hostiles . | . . . . . . . . . . . . . . . . . . . . . . . . . . . . . . . . . . . . . Follow-up Attacks . | . . . . . . . . . . . . . . . . . . . . . . . . . . . . . . . . . . . . . Damage Inflicted 92426 | . 961 184 . 701 1859 1631 2036 511 3298 4136 1076 678 . 733 5593 3233 107 3040 4172 195 754 4775 2073 2949 2494 1493 2138 1094 2317 4367 347 1629 859 2154 15730 13109 Guns 39440 | . 630 40 . 202 1437 1631 1680 511 3298 1428 510 505 . 550 3646 . 32 1241 2655 195 115 4485 427 1439 1013 1196 1458 . 2317 2561 124 555 815 1377 1367 . Cannons 22060 | . . . . . . . 356 . . . . . . . 721 . 75 25 . . 113 26 277 770 941 297 . . . 726 223 1074 44 168 8636 7588 Explosions 26998 | . 330 123 . 499 422 . . . . 2708 566 173 . 183 1113 3233 . 1530 1517 . . . 1369 740 540 . . 1094 . 1080 . . . 609 3648 5521 Melee 1624 | . . . . . . . . . . . . . . . . . . 243 . . . . . . . . . . . . . . . . 1381 . Ramming 35 | . 1 21 . . . . . . . . . . . . 12 . . 1 . . . . . . . . . . . . . . . . . . Kinetic 40840 | . 489 40 . 164 1437 1631 1680 511 3298 1428 510 505 . 550 3646 . 107 1266 1796 99 115 4056 . . . 961 1458 . 2317 2561 124 555 815 1377 7237 107 Thermal 31504 | . 73 . . 38 . . 356 . . . 73 . . . 822 . . . 859 96 639 719 704 2209 1954 532 680 . . 726 223 1074 44 247 6564 12872 Explosive 16213 | . 257 123 . 499 422 . . . . 2686 338 . . 183 1113 3233 . 1530 1359 . . . 1369 584 540 . . . . 1080 . . . 349 548 . Electromagnetic 2210 | . 141 . . . . . . . . 22 155 173 . . . . . . 158 . . . . 156 . . . 1094 . . . . . 181 . 130 Impact 243 | . . . . . . . . . . . . . . . . . . 243 . . . . . . . . . . . . . . . . . . Slashing 1381 | . . . . . . . . . . . . . . . . . . . . . . . . . . . . . . . . . . . 1381 . Piercing . | . . . . . . . . . . . . . . . . . . . . . . . . . . . . . . . . . . . . . Highest Corruption 52 | . . . . . . . 1 1 50 50 50 51 51 52 1 1 1 1 7 7 7 8 9 2 1 15 15 4 7 22 1 5 7 5 19 8 Average Corruption 12 | . . . . . . . 1 1 23 50 50 50 51 51 1 1 1 1 3 7 7 7 8 1 1 11 8 2 6 18 1 3 5 3 10 2 Corruption Purged 47 | . . . . . . . . . . . . . . . . . . . . . . . . 2 . . 19 . . . . . . . 26 . Corruption Blocked . | . . . . . . . . . . . . . . . . . . . . . . . . . . . . . . . . . . . . . Effects 750 | . . . . . . . 3 1 35 65 53 43 9 40 . 3 3 8 27 39 26 58 21 1 2 17 25 . 6 92 4 29 44 19 76 1 Message Errors 166 | . . . . . . . 2 1 2 13 13 9 3 11 . . . 1 10 8 9 12 6 . . . 6 . 2 20 2 7 9 5 15 . Matter Fused 145 | . . . . . . . . . 9 5 7 9 1 5 . . 1 2 7 14 4 11 1 1 . 5 4 . 1 22 1 7 9 2 16 1 Heat Flow Errors 99 | . . . . . . . . . 4 4 9 8 3 3 . 2 2 . 2 6 4 7 3 . 2 1 3 . 1 16 . . 6 3 10 . Energy Discharges 77 | . . . . . . . . . 2 7 4 3 . 4 . . . 1 1 4 1 9 3 . . 5 4 . 1 8 1 4 5 3 7 . Parts Rejected 20 | . . . . . . . . . 1 2 1 1 . 1 . . . . . . . . 2 . . 1 . . 1 3 . . . 1 6 . Data Loss (minor) 81 | . . . . . . . . . 1 5 6 7 2 6 . . . 3 4 4 2 10 2 . . 2 2 . . 5 . 6 6 1 7 . Data Loss (major) 41 | . . . . . . . . . 2 3 5 . . 3 . 1 . . 1 1 5 1 . . . 1 2 . . 4 . 2 3 2 5 . Misfires 35 | . . . . . . . 1 . 1 2 1 1 . 2 . . . 1 1 2 . 2 3 . . . 1 . . 5 . 1 3 . 8 . Alerts 14 | . . . . . . . . . 1 2 1 . . 1 . . . . 1 . . 3 . . . . 1 . . 1 . . 1 2 . . Misdirections 4 | . . . . . . . . . . 3 . . . . . . . . . . . . . . . . . . . 1 . . . . . . Weapon Failures 68 | . . . . . . . . . 12 19 6 5 . 4 . . . . . . 1 3 1 . . 2 2 . . 7 . 2 2 . 2 . Overload Shots . | . . . . . . . . . . . . . . . . . . . . . . . . . . . . . . . . . . . . . Overflow Damage 2648 | . 17 . . . 37 . 3 . . 118 . . . 24 54 81 . 15 14 . . . 31 112 10 24 10 . . 139 61 . 14 15 1277 592 Projectiles 1016 | . . . . . . . 3 . . . . . . . 33 . . . . . . . . 55 10 24 10 . . 17 61 . 14 . 567 222 Explosions 1617 | . 17 . . . 37 . . . . 118 . . . 24 21 81 . . 14 . . . 31 57 . . . . . 122 . . . 15 710 370 Melee 15 | . . . . . . . . . . . . . . . . . . 15 . . . . . . . . . . . . . . . . . . Knockbacks 16 | . . . . . . . . . . . . . . . . . . 1 . . . . . . . . . . . . . . . . 15 . Impact 1 | . . . . . . . . . . . . . . . . . . 1 . . . . . . . . . . . . . . . . . . Kinetic 15 | . . . . . . . . . . . . . . . . . . . . . . . . . . . . . . . . . . . 15 . Secondary . | . . . . . . . . . . . . . . . . . . . . . . . . . . . . . . . . . . . . . Self-Inflicted Damage 1226 | . 15 28 . 32 171 . . . . 24 . . . 52 6 141 . 24 . . . . . 19 . . . 98 . 117 . . . 43 331 125 Shots 25 | . 2 1 . 2 3 . . . . 1 . . . 1 . 4 . 1 . . . . . 1 . . . 1 . 1 . . . 1 4 2 Rammed 9 | . 2 4 . . . . . . . . . . . . 1 . . 2 . . . . . . . . . . . . . . . . . . Targets Rammed 10 | . 2 5 . . . . . . . . . . . . 1 . . 2 . . . . . . . . . . . . . . . . . . Kicked . | . . . . . . . . . . . . . . . . . . . . . . . . . . . . . . . . . . . . . Crushed 1 | . . 1 . . . . . . . . . . . . . . . . . . . . . . . . . . . . . . . . . . Highest Temperature 385 | . 52 6 . 102 13 206 250 96 382 225 280 269 197 266 357 119 244 330 304 385 177 242 162 196 192 169 187 78 206 362 216 196 252 311 292 84 Average Temperature 83 | . 13 4 . 35 12 78 39 33 124 45 79 114 85 99 121 54 86 121 61 102 65 83 45 59 54 81 81 18 93 98 77 78 88 77 62 50 Received Heat Transfer 4686 | . 138 . . 146 441 909 360 32 . 306 54 213 . 84 446 . . 235 189 . 63 90 165 51 127 27 . . 29 199 . 81 68 93 140 . Effects 14 | . . . . . . . 1 . . . 3 . . . 2 . . 5 . . . . . . . . . . . 3 . . . . . . Shutdowns 1 | . . . . . . . . . . . . . . . 1 . . . . . . . . . . . . . . . . . . . . . Energy Bleed 6 | . . . . . . . 1 . . . . . . . 1 . . 2 . . . . . . . . . . . 2 . . . . . . Interference 6 | . . . . . . . . . . . 3 . . . . . . 3 . . . . . . . . . . . . . . . . . . Matter Decay 1 | . . . . . . . . . . . . . . . . . . . . . . . . . . . . . . 1 . . . . . . Siege Activations 23 | . . . . . . . . . . . . 1 . 1 1 . . . . . . . . . . 1 . . . 3 . 1 3 2 7 3 Total Turns 675 | . . . . . . . . . . . . 22 . 35 10 . . . . . . . . . . 19 . . . 50 . 33 48 22 405 31 Longest Duration 163 | . . . . . . . . . . . . 22 . 35 10 . . . . . . . . . . 19 . . . 35 . 33 17 13 163 19 Robots Corrupted 3 | . . . . . . . . . . . . . . . . . . . 1 . . . . . . . . 1 . . . . . . . 1 Combat Hostiles 3 | . . . . . . . . . . . . . . . . . . . 1 . . . . . . . . 1 . . . . . . . 1 Parts Fried 17 | . . . . . . . . . . . . . . . . . . 1 3 . . . . . . . . 6 . . . . . . . 7 Impact Corruptions 1 | . . . . . . . . . . . . . . . . . . 1 . . . . . . . . . . . . . . . . . . Robots Melted 9 | . . . . . . . . . . . . . . . . . . . 1 . . . 1 2 2 . . . . . 1 . . . 1 1 Combat Hostiles 8 | . . . . . . . . . . . . . . . . . . . 1 . . . 1 2 2 . . . . . . . . . 1 1 Parts Melted 45 | . . . . . . . 1 . . . . . . . . . . . 5 2 5 . 4 10 10 2 . . . 2 1 1 . . 2 . Heat Transferred 26738 | . 100 . . 185 . . 481 . . . 50 . . . 777 . . . 2000 200 1184 1593 992 3439 2343 570 2220 . . 592 185 962 37 100 3744 4984 Parts Sabotaged . | . . . . . . . . . . . . . . . . . . . . . . . . . . . . . . . . . . . . . Parts Stolen . | . . . . . . . . . . . . . . . . . . . . . . . . . . . . . . . . . . . . . Parts Stripped . | . . . . . . . . . . . . . . . . . . . . . . . . . . . . . . . . . . . . . Power Chain Reactions 4 | . 2 . . . . . . . . . 1 . . . . . . . . . . . . . . . . . . . . . . 1 . . Missiles Intercepted . | . . . . . . . . . . . . . . . . . . . . . . . . . . . . . . . . . . . . . Alert | -11 -10 -10 -10 -9 -8 -8 -8 -7 -7 -7 -7 -7 -7 -6 -6 -6 -6 -6 -5 -5 -5 -5 -4 -4 -4 -4 -4 -4 -3 -3 -2 -2 -2 -1 -1 -1 ------- Run | Scr Mat Min Exi Min Mat Gar Mat Fac Was Fac Low Low Dat Pro Fac Was Fac Gar Fac Upp Upp Zhi Pro Fac Ext Cet Arc Hub Res Tes Res Qua Sec Acc Com Ac0 Peak Influence 1092 | . 369 279 . 73 406 947 597 244 30 715 . . . . 624 258 480 826 1060 . . . . 430 803 919 682 491 434 630 285 514 726 1092 798 . Initial 461 | . . 143 . . 27 217 461 137 15 . . . . . 54 196 35 224 433 . . . . 21 207 372 367 9 257 120 146 159 232 435 410 . Average 353 | . 162 180 . 34 190 611 404 159 15 376 . . . . 170 168 151 590 533 . . . . 257 421 608 281 20 298 298 193 342 422 642 556 . Maximum Alert Level 4 | . 1 1 . . 2 3 2 1 . 3 . . . . 2 1 2 3 3 . . . . 2 3 3 2 2 2 2 1 2 3 3 4 . Low Security (%) 22 | 100 53 46 . 100 46 . . 58 100 19 . . . . 64 45 61 . . . . . . 24 . . 47 98 14 19 65 15 8 . . . Level 1 26 | . 46 53 . . 52 5 48 41 . 30 . . . . 24 54 25 8 . . . . . 66 37 7 26 . 76 67 34 45 48 4 1 . Level 2 28 | . . . . . . 57 51 . . 48 . . . . 10 . 13 68 87 . . . . 9 59 58 26 1 9 12 . 39 34 61 16 . Level 3 7 | . . . . . . 37 . . . . . . . . . . . 22 12 . . . . . 2 33 . . . . . . 8 33 9 . Level 4 14 | . . . . . . . . . . . . . . . . . . . . . . . . . . . . . . . . . . . 73 . Level 5 . | . . . . . . . . . . . . . . . . . . . . . . . . . . . . . . . . . . . . . High Security . | . . . . . . . . . . . . . . . . . . . . . . . . . . . . . . . . . . . . . Max Security . | . . . . . . . . . . . . . . . . . . . . . . . . . . . . . . . . . . . . . Squads Dispatched 78 | . 3 . . . 4 . 3 2 . 4 . . . . 8 . 5 . 13 . . . 1 4 1 . . 1 2 4 . 4 10 6 3 . Investigation 18 | . 2 . . . 2 . 2 . . 1 . . . . 2 . 2 . 6 . . . . . . . . 1 . . . . . . . . Extermination 25 | . . . . . . . . 2 . 1 . . . . 1 . . . 3 . . . . 3 . . . . 1 3 . 3 3 3 2 . Reinforcement 19 | . 1 . . . 1 . 1 . . 2 . . . . 5 . . . . . . . . 1 . . . . 1 1 . 1 4 1 . . Assault 13 | . . . . . . . . . . . . . . . . . 2 . 3 . . . 1 . 1 . . . . . . . 3 2 1 . Garrison 3 | . . . . . 1 . . . . . . . . . . . 1 . 1 . . . . . . . . . . . . . . . . . Intercept . | . . . . . . . . . . . . . . . . . . . . . . . . . . . . . . . . . . . . . Searches Triggered . | . . . . . . . . . . . . . . . . . . . . . . . . . . . . . . . . . . . . . Data Miner Redirects 9 | . . . . . . . . . . . . . . . . . . . 5 . . . . . . . . 1 . . . . 1 1 1 . Construction Impeded 2 | . . . . . . . . . . . . . . . 1 . . . . . . . . . . . . . . 1 . . . . . . Haulers Reinforced 5 | . . . . . . . . . . . . . . . 2 . . . . . . . . 1 . . . . 1 . . . 1 . . . Active Scanning Responses 3 | . . . . . . . . . . . . . . . . . . . 3 . . . . . . . . . . . . . . . . . Cargo Convoy Interrupts . | . . . . . . . . . . . . . . . . . . . . . . . . . . . . . . . . . . . . . Stealth | -11 -10 -10 -10 -9 -8 -8 -8 -7 -7 -7 -7 -7 -7 -6 -6 -6 -6 -6 -5 -5 -5 -5 -4 -4 -4 -4 -4 -4 -3 -3 -2 -2 -2 -1 -1 -1 --------- Run | Scr Mat Min Exi Min Mat Gar Mat Fac Was Fac Low Low Dat Pro Fac Was Fac Gar Fac Upp Upp Zhi Pro Fac Ext Cet Arc Hub Res Tes Res Qua Sec Acc Com Ac0 Distress Signals 42 | . 1 . . . 3 . 2 . . 1 . . . . 2 . . . . . . . . . 1 2 . . . 1 . 1 . . 28 . Communications Jammed 136 | . . . . . . . . . . . . . . . . . . . . . . . . 7 2 36 . . 13 42 3 3 9 14 7 . Distress Signals 130 | . . . . . . . . . . . . . . . . . . . . . . . . 7 2 36 . . 13 42 . . 9 14 7 . Times Spotted 622 | . 27 3 . 22 28 27 36 2 6 29 10 4 . 4 30 5 7 24 18 . 2 3 9 22 23 20 17 . 10 40 4 20 46 47 49 28 Peak Tracking Total 16 | . 4 3 . 16 5 7 4 1 3 8 4 3 . 3 4 2 6 11 4 . 1 3 6 4 5 5 2 7 3 4 4 5 5 5 8 4 Tactical Retreats 33 | . 3 . . . 3 1 1 . . 3 . . . . . . . 3 1 . . . 2 . . . . . . 6 . 1 3 3 3 . Traps | -11 -10 -10 -10 -9 -8 -8 -8 -7 -7 -7 -7 -7 -7 -6 -6 -6 -6 -6 -5 -5 -5 -5 -4 -4 -4 -4 -4 -4 -3 -3 -2 -2 -2 -1 -1 -1 ------- Run | Scr Mat Min Exi Min Mat Gar Mat Fac Was Fac Low Low Dat Pro Fac Was Fac Gar Fac Upp Upp Zhi Pro Fac Ext Cet Arc Hub Res Tes Res Qua Sec Acc Com Ac0 Traps Triggered 28 | . . . . . . 5 1 1 . 1 . 1 . . 3 . . 6 3 . . . . . . . . . . . 1 2 . 3 1 . Indirectly . | . . . . . . . . . . . . . . . . . . . . . . . . . . . . . . . . . . . . . Trap Hack Attempts . | . . . . . . . . . . . . . . . . . . . . . . . . . . . . . . . . . . . . . Triggered . | . . . . . . . . . . . . . . . . . . . . . . . . . . . . . . . . . . . . . Disarmed . | . . . . . . . . . . . . . . . . . . . . . . . . . . . . . . . . . . . . . Reprogrammed . | . . . . . . . . . . . . . . . . . . . . . . . . . . . . . . . . . . . . . Reused . | . . . . . . . . . . . . . . . . . . . . . . . . . . . . . . . . . . . . . Traps Extracted . | . . . . . . . . . . . . . . . . . . . . . . . . . . . . . . . . . . . . . Installed . | . . . . . . . . . . . . . . . . . . . . . . . . . . . . . . . . . . . . . Triggered . | . . . . . . . . . . . . . . . . . . . . . . . . . . . . . . . . . . . . . Machines | -11 -10 -10 -10 -9 -8 -8 -8 -7 -7 -7 -7 -7 -7 -6 -6 -6 -6 -6 -5 -5 -5 -5 -4 -4 -4 -4 -4 -4 -3 -3 -2 -2 -2 -1 -1 -1 ---------- Run | Scr Mat Min Exi Min Mat Gar Mat Fac Was Fac Low Low Dat Pro Fac Was Fac Gar Fac Upp Upp Zhi Pro Fac Ext Cet Arc Hub Res Tes Res Qua Sec Acc Com Ac0 Machines Disabled 82 | . 1 . . . 2 2 1 . . 7 . . . . 2 . 2 3 6 . 2 . 1 4 . 5 6 9 . 11 1 6 1 3 5 2 Max in Single Turn 9 | . 1 . . . 2 1 1 . . 4 . . . . 1 . . 1 3 . 1 . 1 2 . 1 1 9 . 1 1 1 1 1 2 1 Garrison Access 8 | . . . . . . . . . . 1 . . . . 1 . . . 1 . . . . 1 . . . . . 1 . 1 1 1 . . Garrison Relay 5 | . . . . . . 2 . . . . . . . . . . . 3 . . . . . . . . . . . . . . . . . . Network Hub 1 | . . . . . . . . . . . . . . . . . . . . . . . . . . . . 1 . . . . . . . . Machines Sabotaged . | . . . . . . . . . . . . . . . . . . . . . . . . . . . . . . . . . . . . . Garrisons Compromised . | . . . . . . . . . . . . . . . . . . . . . . . . . . . . . . . . . . . . . Overloaded Fab Kills . | . . . . . . . . . . . . . . . . . . . . . . . . . . . . . . . . . . . . . Hacking | -11 -10 -10 -10 -9 -8 -8 -8 -7 -7 -7 -7 -7 -7 -6 -6 -6 -6 -6 -5 -5 -5 -5 -4 -4 -4 -4 -4 -4 -3 -3 -2 -2 -2 -1 -1 -1 --------- Run | Scr Mat Min Exi Min Mat Gar Mat Fac Was Fac Low Low Dat Pro Fac Was Fac Gar Fac Upp Upp Zhi Pro Fac Ext Cet Arc Hub Res Tes Res Qua Sec Acc Com Ac0 Machines Accessed 125 | . 8 2 1 . 7 . 8 . . 4 . . 4 . 13 . 4 . 5 1 . 4 . 6 2 1 . 2 2 11 2 11 14 9 4 . Terminals 83 | . 8 2 . . 4 . 8 . . 1 . . . . 6 . 1 . 4 . . . . 3 2 1 . 2 1 7 1 8 13 8 3 . Fabricators 3 | . . . . . . . . . . . . . . . 1 . 1 . . . . . . . . . . . . 1 . . . . . . Repair Stations 6 | . . . . . 1 . . . . . . . . . 1 . . . . . . . . 2 . . . . . 1 . . . . 1 . Recycling Units 4 | . . . . . 1 . . . . 1 . . . . 2 . . . . . . . . . . . . . . . . . . . . . Scanalyzers 9 | . . . . . . . . . . 1 . . . . 2 . 1 . . . . . . . . . . . 1 1 1 2 . . . . Garrison Access 10 | . . . . . 1 . . . . 1 . . . . 1 . 1 . 1 . . . . 1 . . . . . 1 . 1 1 1 . . Total Hacks 381 | . 24 8 1 . 20 . 30 . . 12 . . 31 . 29 . 11 . 8 1 . 17 . 21 11 3 . 3 7 25 6 35 39 32 7 . Successful 197 | . 7 4 1 . 11 . 13 . . 7 . . 31 . 11 . 6 . 2 1 . 17 . 15 3 . . 1 3 7 3 17 20 15 2 . Failed 183 | . 17 4 . . 8 . 17 . . 5 . . . . 18 . 5 . 6 . . . . 6 8 3 . 2 4 18 3 18 19 17 5 . Catastrophic 39 | . . . . . 2 . 4 . . 1 . . . . 3 . 2 . 2 . . . . 2 1 1 . 1 1 6 . 1 4 4 4 . Database Lockouts 1 | . . . . . 1 . . . . . . . . . . . . . . . . . . . . . . . . . . . . . . . Manual 101 | . 16 7 . . 8 . 12 . . . . . . . 10 . 5 . 2 . . . . . 5 1 . 1 3 8 1 . 5 13 4 . Terminals 252 | . 24 8 . . 14 . 30 . . 2 . . . . 16 . 3 . 7 . . . . 3 11 3 . 3 6 19 5 24 38 30 6 . Fabricators 9 | . . . . . . . . . . . . . . . 3 . 4 . . . . . . . . . . . . 2 . . . . . . Repair Stations 23 | . . . . . 3 . . . . . . . . . 1 . . . . . . . . 17 . . . . . 1 . . . . 1 . Recycling Units 9 | . . . . . 1 . . . . 3 . . . . 5 . . . . . . . . . . . . . . . . . . . . . Scanalyzers 25 | . . . . . . . . . . 6 . . . . 3 . 2 . . . . . . . . . . . 1 2 1 10 . . . . Garrison Access 13 | . . . . . 2 . . . . 1 . . . . 1 . 2 . 1 . . . . 1 . . . . . 1 . 1 1 2 . . Terminal Hacks 138 | . 6 4 1 . 7 . 12 . . . . . 31 . 4 . . . 1 1 . 17 . 1 2 . . . 3 6 2 11 17 11 1 . Record 19 | . . . 1 . . . . . . . . . 11 . . . . . . . . 5 . . . . . . . . . 2 . . . . Part Schematic 18 | . . . . . . . . . . . . . 13 . . . . . . . . 4 . . . . . . 1 . . . . . . . Robot Schematic 4 | . . . . . . . . . . . . . 4 . . . . . . . . . . . . . . . . . . . . . . . Robot Analysis 14 | . 2 3 . . 1 . 1 . . . . . . . . . . . . . . 4 . . . . . . . . 1 1 1 . . . Prototype ID Bank 22 | . 3 . . . . . 3 . . . . . 3 . 1 . . . . . . 4 . . 1 . . . . 1 . 2 3 1 . . Open Door 8 | . . . . . . . . . . . . . . . . . . . . 1 . . . 1 . . . . . 1 . 1 3 . 1 . Level Access Points 1 | . . . . . . . . . . . . . . . . . . . . . . . . . . . . . . . . . . 1 . . Branch Access Points 4 | . . . . . . . . . . . . . . . . . . . . . . . . . . . . . 1 . 1 1 1 . . . Machine Index 1 | . . . . . . . . . . . . . . . . . . . . . . . . . . . . . . . . 1 . . . . Terminal Index 3 | . . . . . 1 . . . . . . . . . . . . . . . . . . . . . . . . . . . 1 1 . . Garrison Index 1 | . . . . . . . . . . . . . . . . . . . . . . . . . . . . . . . . . . 1 . . Alert Level 1 | . . . . . . . . . . . . . . . . . . . . . . . . . . . . . . . . . 1 . . . Unreport Threat 15 | . . . . . 1 . 4 . . . . . . . . . . . . . . . . . . . . . 1 3 . . 2 4 . . Locate Traps 4 | . . . . . 1 . . . . . . . . . . . . . . . . . . . 1 . . . . . . 1 . 1 . . Maintenance Status 1 | . . . . . . . . . . . . . . . 1 . . . . . . . . . . . . . . . . . . . . . Recall Investigation 1 | . . . . . 1 . . . . . . . . . . . . . . . . . . . . . . . . . . . . . . . Hauler Manifests 3 | . . . . . 1 . 1 . . . . . . . . . . . . . . . . . . . . . . . . . 1 . . . Registered Components 3 | . . . . . 1 . 1 . . . . . . . . . . . . . . . . . . . . . . . . 1 . . . . Registered Prototypes 2 | . . . . . . . . . . . . . . . . . . . . . . . . . . . . . . . . . 1 1 . . Zone Layout 13 | . 1 1 . . . . 2 . . . . . . . 2 . . . 1 . . . . . . . . . . 1 . 1 3 1 . . Fabricator Hacks 4 | . . . . . . . . . . . . . . . 2 . 2 . . . . . . . . . . . . . . . . . . . Load Schematic 2 | . . . . . . . . . . . . . . . 1 . 1 . . . . . . . . . . . . . . . . . . . Build 2 | . . . . . . . . . . . . . . . 1 . 1 . . . . . . . . . . . . . . . . . . . Repair Station Hacks 15 | . . . . . 2 . . . . . . . . . . . . . . . . . . 13 . . . . . . . . . . . . Scan Component 8 | . . . . . 1 . . . . . . . . . . . . . . . . . . 7 . . . . . . . . . . . . Repair 7 | . . . . . 1 . . . . . . . . . . . . . . . . . . 6 . . . . . . . . . . . . Recycling Unit Hacks 3 | . . . . . . . . . . 2 . . . . 1 . . . . . . . . . . . . . . . . . . . . . Retrieve Matter 1 | . . . . . . . . . . 1 . . . . . . . . . . . . . . . . . . . . . . . . . . Retrieve Components 2 | . . . . . . . . . . 1 . . . . 1 . . . . . . . . . . . . . . . . . . . . . Scanalyzer 12 | . . . . . . . . . . 4 . . . . 1 . 1 . . . . . . . . . . . . . 1 5 . . . . Insert Component 11 | . . . . . . . . . . 3 . . . . 1 . 1 . . . . . . . . . . . . . 1 5 . . . . Analyze 1 | . . . . . . . . . . 1 . . . . . . . . . . . . . . . . . . . . . . . . . . Garrison Access Hacks 12 | . . . . . 1 . . . . 1 . . . . 1 . 2 . 1 . . . . 1 . . . . . 1 . 1 1 2 . . Unlock Access 2 | . . . . . 1 . . . . . . . . . . . 1 . . . . . . . . . . . . . . . . . . . Seal Access 8 | . . . . . . . . . . 1 . . . . 1 . . . 1 . . . . 1 . . . . . 1 . 1 1 1 . . Coupler Status 2 | . . . . . . . . . . . . . . . . . 1 . . . . . . . . . . . . . . . . 1 . . Unauthorized Hacks 13 | . 1 . . . 1 . 1 . . . . . . . 2 . 1 . . . . . . . 1 . . 1 . . . . 2 2 1 . Terminals 10 | . 1 . . . . . 1 . . . . . . . 1 . . . . . . . . . 1 . . 1 . . . . 2 2 1 . Track 1 | . . . . . . . . . . . . . . . . . . . . . . . . . . . . . . . . . 1 . . . Botnet 4 | . 1 . . . . . . . . . . . . . . . . . . . . . . . . . . . . . . . . 2 1 . Operators 4 | . . . . . . . 1 . . . . . . . 1 . . . . . . . . . 1 . . . . . . . 1 . . . Sabotage 1 | . . . . . . . . . . . . . . . . . . . . . . . . . . . . 1 . . . . . . . . Fabricators 1 | . . . . . . . . . . . . . . . . . 1 . . . . . . . . . . . . . . . . . . . Prioritize 1 | . . . . . . . . . . . . . . . . . 1 . . . . . . . . . . . . . . . . . . . Repair Stations . | . . . . . . . . . . . . . . . . . . . . . . . . . . . . . . . . . . . . . Recycling Units 2 | . . . . . 1 . . . . . . . . . 1 . . . . . . . . . . . . . . . . . . . . . Recyclers 1 | . . . . . . . . . . . . . . . 1 . . . . . . . . . . . . . . . . . . . . . Tunnel 1 | . . . . . 1 . . . . . . . . . . . . . . . . . . . . . . . . . . . . . . . Scanalyzers . | . . . . . . . . . . . . . . . . . . . . . . . . . . . . . . . . . . . . . Garrison Access . | . . . . . . . . . . . . . . . . . . . . . . . . . . . . . . . . . . . . . Data Cores Recovered 2 | . 1 . . . . . . . . . . . . . . . . . . . . . . . . . . . . . . . . 1 . . Used 1 | . . . . . . . . . . . . . . . . . . . . . . . . . . . . . . . . . . 1 . . Hacking Detections 92 | . 8 2 . . 5 . 8 . . 3 . . . . 12 . 3 . 4 . . . . 3 2 1 . 1 2 8 1 7 11 8 3 . Full Trace Events 13 | . 2 1 . . 1 . 2 . . 1 . . . . 2 . 2 . 2 . . . . . . . . . . . . . . . . . Feedback Events 1 | . . . . . . . 1 . . . . . . . . . . . . . . . . . . . . . . . . . . . . . Corruption 1 | . . . . . . . 1 . . . . . . . . . . . . . . . . . . . . . . . . . . . . . Feedback Blocked . | . . . . . . . . . . . . . . . . . . . . . . . . . . . . . . . . . . . . . Robot Schematics Acquired 7 | . . . . . . . . . . . . . 4 . . . . . . . . . . . . . . . . 3 . . . . . . Robots Built . | . . . . . . . . . . . . . . . . . . . . . . . . . . . . . . . . . . . . . Authchips . | . . . . . . . . . . . . . . . . . . . . . . . . . . . . . . . . . . . . . Time . | . . . . . . . . . . . . . . . . . . . . . . . . . . . . . . . . . . . . . Total Robot Build Rating . | . . . . . . . . . . . . . . . . . . . . . . . . . . . . . . . . . . . . . Part Schematics Acquired 21 | . . . . . . . . . . 1 . . 13 . . . . . . . . 4 . . . . . . 1 2 . . . . . . Parts Built 2 | . . . . . . . . . . . . . . . 1 . 1 . . . . . . . . . . . . . . . . . . . Authchips . | . . . . . . . . . . . . . . . . . . . . . . . . . . . . . . . . . . . . . Time 222 | . . . . . . . . . . . . . . . 169 . 53 . . . . . . . . . . . . . . . . . . . Total Part Build Rating 12 | . . . . . . . . . . . . . . . 6 . 6 . . . . . . . . . . . . . . . . . . . Parts Repaired 7 | . . . . . 1 . . . . . . . . . . . . . . . . . . 6 . . . . . . . . . . . . Time 545 | . . . . . 32 . . . . . . . . . . . . . . . . . . 513 . . . . . . . . . . . . Parts Recycled . | . . . . . . . . . . . . . . . . . . . . . . . . . . . . . . . . . . . . . Recycled Matter . | . . . . . . . . . . . . . . . . . . . . . . . . . . . . . . . . . . . . . Retrieved Matter . | . . . . . . . . . . . . . . . . . . . . . . . . . . . . . . . . . . . . . Retrieved Components 5 | . . . . . . . . . . 5 . . . . . . . . . . . . . . . . . . . . . . . . . . Parts Scanalyzed 2 | . . . . . . . . . . 2 . . . . . . . . . . . . . . . . . . . . . . . . . . Part Schematics Acquired 1 | . . . . . . . . . . 1 . . . . . . . . . . . . . . . . . . . . . . . . . . Parts Damaged 1 | . . . . . . . . . . 1 . . . . . . . . . . . . . . . . . . . . . . . . . . Bothacking | -11 -10 -10 -10 -9 -8 -8 -8 -7 -7 -7 -7 -7 -7 -6 -6 -6 -6 -6 -5 -5 -5 -5 -4 -4 -4 -4 -4 -4 -3 -3 -2 -2 -2 -1 -1 -1 ------------ Run | Scr Mat Min Exi Min Mat Gar Mat Fac Was Fac Low Low Dat Pro Fac Was Fac Gar Fac Upp Upp Zhi Pro Fac Ext Cet Arc Hub Res Tes Res Qua Sec Acc Com Ac0 Used RIF Installer 2 | . . . . . . 1 . . . . . . . . . . . 1 . . . . . . . . . . . . . . . . . . Alert ID Control 1 | . . . . . . . . . . . . . . . . . . 1 . . . . . . . . . . . . . . . . . . Robots Hacked 26 | . . . . . . . 4 1 6 . . . . . . . . . . . . 3 . . . . . . . 10 . . . 1 1 . Non-combat 11 | . . . . . . . 4 1 . . . . . . . . . . . . . . . . . . . . . 5 . . . 1 . . Combat 14 | . . . . . . . . . 6 . . . . . . . . . . . . 3 . . . . . . . 5 . . . . . . Robot Hacks Applied 27 | . . . . . . . 5 1 6 . . . . . . . . . . . . 3 . . . . . . . 10 . . . 2 . . parse_system 3 | . . . . . . . . . . . . . . . . . . . . . . 3 . . . . . . . . . . . . . . find_chute 1 | . . . . . . . . 1 . . . . . . . . . . . . . . . . . . . . . . . . . . . . map_earth 1 | . . . . . . . 1 . . . . . . . . . . . . . . . . . . . . . . . . . . . . . drop_inventory 1 | . . . . . . . . . . . . . . . . . . . . . . . . . . . . . . 1 . . . . . . ignore_parts 1 | . . . . . . . 1 . . . . . . . . . . . . . . . . . . . . . . . . . . . . . purge_threat 2 | . . . . . . . . . . . . . . . . . . . . . . . . . . . . . . . . . . 2 . . map_route 2 | . . . . . . . 1 . . . . . . . . . . . . . . . . . . . . . . 1 . . . . . . mark_security 1 | . . . . . . . . . . . . . . . . . . . . . . . . . . . . . . 1 . . . . . . relay_feed 1 | . . . . . . . 1 . . . . . . . . . . . . . . . . . . . . . . . . . . . . . disable_scanner 5 | . . . . . . . . . . . . . . . . . . . . . . . . . . . . . . 5 . . . . . . ignore_targets 6 | . . . . . . . . . 6 . . . . . . . . . . . . . . . . . . . . . . . . . . . formatsys_low 3 | . . . . . . . 1 . . . . . . . . . . . . . . . . . . . . . . 2 . . . . . . Manual 1 | . . . . . . . . . . . . . . . . . . . . . . . . . . . . . . . . . . . 1 . Relay Couplers Released 24 | . . . . . . 8 . . . . . . . . . . . 14 . . . . . . . . . . . . . . . 2 . . Machine Destruction 24 | . . . . . . 8 . . . . . . . . . . . 14 . . . . . . . . . . . . . . . 2 . . Attached 6 | . . . . . . . 1 . 1 . . . . . . . . 1 . . . . . . . . . . . 2 . . . 1 . . Fabnet Peak Effective % . | . . . . . . . . . . . . . . . . . . . . . . . . . . . . . . . . . . . . . Robots Rewired 13 | . . . . . . . . . . . . . . . . . . . . . . . 1 . 12 . . . . . . . . . . . Allies Hacked . | . . . . . . . . . . . . . . . . . . . . . . . . . . . . . . . . . . . . . Hacks Repelled . | . . . . . . . . . . . . . . . . . . . . . . . . . . . . . . . . . . . . . Allies | -11 -10 -10 -10 -9 -8 -8 -8 -7 -7 -7 -7 -7 -7 -6 -6 -6 -6 -6 -5 -5 -5 -5 -4 -4 -4 -4 -4 -4 -3 -3 -2 -2 -2 -1 -1 -1 -------- Run | Scr Mat Min Exi Min Mat Gar Mat Fac Was Fac Low Low Dat Pro Fac Was Fac Gar Fac Upp Upp Zhi Pro Fac Ext Cet Arc Hub Res Tes Res Qua Sec Acc Com Ac0 Total Allies 48 | . . . . 2 . . 1 . 1 . . . . 1 . 19 . . . . . . 1 . 16 5 . . . 2 . . . . . . Largest Group 18 | . . . . 2 . . 1 . 1 . . . . 1 1 18 18 9 1 . . . 1 . 12 8 4 . . 1 . . . . . . Highest-Rated Group 655 | . . . . 51 . . 10 . 31 . . . . 96 96 638 638 346 27 . . . 47 . 655 610 418 . . 35 . . . . . . Highest-Rated Ally 159 | . . . . 31 . . 10 . 31 . . . . 96 96 50 50 50 27 . . . 47 . 159 153 137 . . 35 . . . . . . Total Orders 24 | . . . . . . . . . . . . . . . . . . . . . . . . . 14 . 1 . . 9 . . . . . . STAY 11 | . . . . . . . . . . . . . . . . . . . . . . . . . 8 . 1 . . 2 . . . . . . FOLLOW 7 | . . . . . . . . . . . . . . . . . . . . . . . . . 6 . . . . 1 . . . . . . AID 6 | . . . . . . . . . . . . . . . . . . . . . . . . . . . . . . 6 . . . . . . Ally Attacks 397 | . . . . 8 . . . . 5 . . . . 18 . 27 50 25 . . . . 3 . 127 120 14 . . . . . . . . . Total Damage 10887 | . . . . 144 . . . . 41 . . . . 769 . 460 1283 783 . . . . 76 . 3433 3219 679 . . . . . . . . . Kills 51 | . . . . 2 . . . . . . . . . 3 . . 12 1 . . . . . . 15 17 1 . . . . . . . . . Allies Corrupted 1 | . . . . . . . . . . . . . . . . . . 1 . . . . . . . . . . . . . . . . . . Allies Melted 1 | . . . . . . . . . . . . . . . . . 1 . . . . . . . . . . . . . . . . . . . Intel | -11 -10 -10 -10 -9 -8 -8 -8 -7 -7 -7 -7 -7 -7 -6 -6 -6 -6 -6 -5 -5 -5 -5 -4 -4 -4 -4 -4 -4 -3 -3 -2 -2 -2 -1 -1 -1 ------- Run | Scr Mat Min Exi Min Mat Gar Mat Fac Was Fac Low Low Dat Pro Fac Was Fac Gar Fac Upp Upp Zhi Pro Fac Ext Cet Arc Hub Res Tes Res Qua Sec Acc Com Ac0 Robot Analysis Total 14 | . 2 3 . . 1 . 1 . . . . . . . . . . . . . . 4 . . . . . . . . 1 1 1 . . . Derelict Logs Recovered 9 | . . 1 . . . . . . . . 1 2 . 1 . . . . . 1 1 . 2 . . . . . . . . . . . . . Drone Launches . | . . . . . . . . . . . . . . . . . . . . . . . . . . . . . . . . . . . . . Drone Recoveries . | . . . . . . . . . . . . . . . . . . . . . . . . . . . . . . . . . . . . . Exploration | -11 -10 -10 -10 -9 -8 -8 -8 -7 -7 -7 -7 -7 -7 -6 -6 -6 -6 -6 -5 -5 -5 -5 -4 -4 -4 -4 -4 -4 -3 -3 -2 -2 -2 -1 -1 -1 ------------- Run | Scr Mat Min Exi Min Mat Gar Mat Fac Was Fac Low Low Dat Pro Fac Was Fac Gar Fac Upp Upp Zhi Pro Fac Ext Cet Arc Hub Res Tes Res Qua Sec Acc Com Ac0 Turns Passed 42847 | 4 1176 710 390 295 880 1324 1477 506 642 751 933 747 137 661 2020 641 412 1545 1638 1374 995 1817 567 1150 848 513 3021 360 484 2036 356 1680 1775 1558 6943 481 Spaces Moved 18376 | 1 603 431 188 90 316 491 646 188 200 342 510 415 90 373 868 325 226 629 571 580 380 576 267 646 553 214 297 180 196 932 179 845 878 698 3309 143 Core 88 | . . . . . . 1 . . . . . . . . . . . . . . . . . . . . 79 . . . . . . . . 8 Treads 13419 | 1 603 431 188 90 307 435 616 188 200 342 510 282 . . 88 325 226 629 160 . . 46 . . . 182 218 180 196 932 179 845 878 698 3309 135 Legs 1774 | . . . . . . 7 . . . . . . . . . . . . . . . 269 267 646 553 32 . . . . . . . . . . Wheels 3095 | . . . . . 9 48 30 . . . . 133 90 373 780 . . . 411 580 380 261 . . . . . . . . . . . . . . Hover . | . . . . . . . . . . . . . . . . . . . . . . . . . . . . . . . . . . . . . Flight . | . . . . . . . . . . . . . . . . . . . . . . . . . . . . . . . . . . . . . Fastest Speed 50 | 160 160 160 160 240 150 150 110 240 160 160 160 160 145 160 160 160 160 160 160 205 205 176 180 113 116 116 160 160 160 155 160 155 161 145 145 50 Average Speed 182 | 160 160 160 207 240 164 202 166 240 210 160 160 160 147 160 162 167 160 211 223 219 213 210 180 116 116 183 769 160 160 158 160 160 161 168 171 152 Slowest Speed 2450 | 160 160 160 240 240 240 800 240 240 240 160 160 160 160 160 240 240 160 240 290 220 220 400 180 186 116 240 2450 160 160 160 240 161 161 225 270 350 Overloaded Moves . | . . . . . . . . . . . . . . . . . . . . . . . . . . . . . . . . . . . . . Propulsion Burnouts . | . . . . . . . . . . . . . . . . . . . . . . . . . . . . . . . . . . . . . Robots Hopped . | . . . . . . . . . . . . . . . . . . . . . . . . . . . . . . . . . . . . . Cave-ins Triggered . | . . . . . . . . . . . . . . . . . . . . . . . . . . . . . . . . . . . . . Teleports 6 | . . . . . . . . . . . . . . . . . . . . . . . . . . . . . . . . . 4 . 1 1 Exploration Rate (%) 49 | 2 91 89 53 21 28 62 62 6 82 13 59 60 68 62 28 96 8 75 19 71 53 75 42 20 69 72 73 18 5 82 10 85 63 25 82 18 Regions Visited 36 Branch Regions 20 Pre-discovered Areas 9 | . . . 1 . 1 . . . . . . 1 1 . . . . . . . . 3 2 . . . . . . . . . . . . . Known Exits Taken 15 | . . . . . 1 . . . . 1 1 1 1 1 . . 1 . 1 1 1 . . 1 . . . 1 1 . 1 . . 1 . . Unknown Exits Taken 15 | 1 1 1 1 1 . . 1 . . . . . . . . . . . . . . 1 1 . 1 1 1 . . 1 . 1 1 . 1 . Scrap Searched 11 | . . 1 . . . . . . . . . 3 . 3 . . . . . 2 2 . . . . . . . . . . . . . . . Spaces Dug 240 | . . 11 . 6 . . . . . . 11 4 . 13 21 . 5 . 31 8 4 . . 12 2 . . 10 . 10 12 29 18 20 13 . Terrain Destroyed 1884 | . 20 11 . 27 47 . 14 . . 53 28 5 . 37 59 149 7 37 91 11 8 69 68 47 41 8 19 175 1 128 14 47 30 67 128 438 Melee 40 | . . . . . . . . . . . 2 3 . . 2 . 4 . 1 . . . . . . . . . . . . . 14 9 5 . Projectile 348 | . . . . . . . 14 . . . 3 2 . . 10 . 3 . 6 11 8 68 3 28 6 8 19 10 1 34 14 42 6 13 15 24 AOE 1461 | . 20 11 . 27 47 . . . . 53 23 . . 37 47 149 . 37 84 . . . 65 19 35 . . 165 . 93 . . . 35 100 414 Terrain Rammed . | . . . . . . . . . . . . . . . . . . . . . . . . . . . . . . . . . . . . . Walls Destroyed . | . . . . . . . . . . . . . . . . . . . . . . . . . . . . . . . . . . . . . Machines Disabled . | . . . . . . . . . . . . . . . . . . . . . . . . . . . . . . . . . . . . . Actions | -11 -10 -10 -10 -9 -8 -8 -8 -7 -7 -7 -7 -7 -7 -6 -6 -6 -6 -6 -5 -5 -5 -5 -4 -4 -4 -4 -4 -4 -3 -3 -2 -2 -2 -1 -1 -1 --------- Run | Scr Mat Min Exi Min Mat Gar Mat Fac Was Fac Low Low Dat Pro Fac Was Fac Gar Fac Upp Upp Zhi Pro Fac Ext Cet Arc Hub Res Tes Res Qua Sec Acc Com Ac0 Total 24512 | 6 717 442 189 138 512 670 917 229 336 463 572 455 97 412 1259 391 260 759 800 660 479 971 320 942 691 287 815 237 299 1316 222 1046 1120 931 4166 386 Wait 2127 | . 22 . . 12 46 18 76 14 10 12 19 6 . 11 180 15 8 36 88 61 35 12 18 188 59 18 390 24 51 129 13 45 70 43 336 62 Move 18342 | . 602 430 187 89 316 489 645 188 199 341 509 414 89 372 868 324 226 628 570 579 379 575 266 645 552 213 296 179 195 931 178 844 877 697 3308 142 Hop . | . . . . . . . . . . . . . . . . . . . . . . . . . . . . . . . . . . . . . Pick Up 316 | . 10 1 . 4 14 15 25 5 7 13 1 2 1 4 18 2 2 4 12 1 5 31 . 14 2 6 3 3 3 18 2 11 14 5 44 14 Fast Attach 223 | . 5 . . 1 1 10 7 . 5 6 3 2 . 1 9 8 2 5 11 2 1 20 3 7 3 5 6 3 3 23 2 18 4 8 36 3 Attach 143 | 2 1 . . 5 7 8 2 2 . 3 1 2 3 4 4 1 . . 3 . . 16 1 4 1 2 1 1 2 7 2 2 8 7 32 9 Detach 32 | . . . . . . . . . . . . . 3 . . . . . . . . 1 . 1 . 1 . 1 . 3 . . 1 5 15 1 Swap 513 | . 8 2 1 4 19 5 24 5 13 18 13 7 . 4 37 8 3 20 32 2 6 11 7 14 15 8 6 9 15 49 2 23 36 33 44 10 Drop 464 | 4 8 . 1 2 7 9 35 1 17 14 2 1 1 2 21 10 4 10 20 3 7 44 1 16 7 11 7 6 3 46 3 26 16 8 70 21 Fire 2064 | . 59 4 . 21 102 100 97 13 85 55 22 17 . 14 119 23 8 38 63 12 46 103 16 53 51 23 106 11 27 110 20 77 79 116 250 124 Melee 75 | . . . . . . . 6 1 . . 2 4 . . 2 . 4 4 1 . . . . . . . . . . . . . 15 9 27 . Ram 2 | . . . . . . . . . . 1 . . . . 1 . . . . . . . . . . . . . . . . . . . . . Kick . | . . . . . . . . . . . . . . . . . . . . . . . . . . . . . . . . . . . . . Crush 9 | . 2 5 . . . . . . . . . . . . . . . 2 . . . . . . . . . . . . . . . . . . Escape Stasis 191 | . . . . . . 16 . . . . . . . . . . 3 12 . . . 158 . . . . . . . . . . . . 2 . Rewire 11 | . . . . . . . . . . . . . . . . . . . . . . . 8 . 1 . . . . . . . . . 2 . Trap . | . . . . . . . . . . . . . . . . . . . . . . . . . . . . . . . . . . . . . Miscellaneous . | . . . . . . . . . . . . . . . . . . . . . . . . . . . . . . . . . . . . . Route ------- -11/Scrapyard -10/Materials (discovered 4 exits: [*Mat x2] / *Min x2) -10/Mines (discovered 2 exits: [*Mat] / *Exi) -10/Exiles -9/Mines -8/Materials -8/Garrison (discovered 3 exits: *Mat x3) -8/Materials -7/Factory -7/Waste -7/Factory -7/Lower Caves -7/Lower Caves -7/Data Miner -6/Proximity Caves -6/Factory (discovered 4 exits: *Fac x3 / *Low) -6/Waste -6/Factory -6/Garrison (discovered 3 exits: *Fac x3) -5/Factory -5/Upper Caves -5/Upper Caves -5/Zhirov -4/Proximity Caves -4/Factory (discovered 2 exits: *Res / *Ext) -4/Extension (discovered 2 exits: *Res / *Cet) -4/Cetus (discovered 2 exits: *Res / [*Arc]) -4/Archives (discovered 2 exits: *Res / *Hub) -4/Hub_04(d) (discovered 2 exits: *Res x2) -3/Research (discovered 3 exits: Arm / *Tes x2) -3/Testing -2/Research (discovered 2 exits: *Qua x2) -2/Quarantine (discovered 2 exits: *Acc / *Sec) -2/Section 7 -1/Access (discovered 2 exits: Sur / *Com) -1/Command (discovered 3 exits: *Sur x2 / [*Ac0]) -1/Access_0 0b11 Command History --------- Turn | Location | Event 5 | -11/Scrapyard | Discovered new exit (range 0) 5 | -11/Scrapyard | Entered Materials 301 | -10/Materials | Build established: Mutant 550 | -10/Materials | Discovered new exit (range 8) 637 | -10/Materials | Discovered new exit (range 16) 913 | -10/Materials | Discovered new exit (range 5) 936 | -10/Materials | Discovered new exit (range 16) 1181 | -10/Materials | Entered Mines 1196 | -10/Mines | Discovered new exit (range 12) 1883 | -10/Mines | Deemed a non-threat by the Exiles lab entrance 1885 | -10/Mines | Discovered new exit (range 5) 1891 | -10/Mines | Entered Exiles 1931 | -10/Exiles | Met 8R-AWN 1954 | -10/Exiles | Met EX-HEX 2086 | -10/Exiles | Met EX-DEC 2127 | -10/Exiles | Learned location of Zion (-6) 2254 | -10/Exiles | Discovered new exit (range 12) 2281 | -10/Exiles | Entered Mines 2326 | -9/Mines | Met a Derelict bent on vengeance 2369 | -9/Mines | Assembled infested the area 2374 | -9/Mines | Assisted by a Guerilla fighting off Assembled 2397 | -9/Mines | Core integrity fell below 50% 2416 | -9/Mines | Core integrity fell below 20% 2424 | -9/Mines | Destroyed 9 combat bots 2449 | -9/Mines | Lost 4 parts (1p1n1u1w) 2455 | -9/Mines | Discovered new exit (range 7) 2576 | -9/Mines | Entered Materials 2576 | -8/Materials | Evolved 4 slots: Propulsion x2, Utility x2 2995 | -8/Materials | Central database locked down 3073 | -8/Materials | Repaired Hrd. Light Armor Plating 3292 | -8/Materials | Build established: Scavenger-Mutant 3456 | -8/Materials | Identified exit to Garrison 3456 | -8/Materials | Entered Garrison 3570 | -8/Garrison | Triggered checkpoint 3585 | -8/Garrison | Triggered checkpoint 3633 | -8/Garrison | Core integrity fell below 50% 3652 | -8/Garrison | Lost 7 parts (1p3n1u2w) 3668 | -8/Garrison | Destroyed 7 combat bots 3889 | -8/Garrison | Discovered new exit (range 10) 4093 | -8/Garrison | Discovered new exit (range 9) 4194 | -8/Garrison | Triggered checkpoint 4346 | -8/Garrison | Triggered checkpoint 4402 | -8/Garrison | Lost 3 parts (1n1u1w) 4410 | -8/Garrison | Garrison Relay disabled 4457 | -8/Garrison | Discovered new exit (range 10) 4479 | -8/Garrison | Installed Relay Interface Framework 4548 | -8/Garrison | Triggered checkpoint 4622 | -8/Garrison | Triggered checkpoint 4671 | -8/Garrison | Garrison Relay disabled 4780 | -8/Garrison | Entered Materials 5350 | -8/Materials | Core integrity fell below 20% 5762 | -8/Materials | Discovered new exit (range 10) 6257 | -8/Materials | Entered Factory 6257 | -7/Factory | Evolved 2 slots: Utility x1, Weapon x1 6730 | -7/Factory | Build established: Scavenger-Tank 6763 | -7/Factory | Sucked down chute 6763 | -7/Factory | Entered Waste 6764 | -7/Waste | Met a frightened Derelict 6778 | -7/Waste | EMP discharged 6779 | -7/Waste | Spotted C-40 Crusher 6779 | -7/Waste | Spotted C-40 Crusher 6787 | -7/Waste | Spotted C-40 Crusher 6802 | -7/Waste | Spotted C-40 Crusher 6872 | -7/Waste | Spotted C-40 Crusher 6878 | -7/Waste | EMP discharged 6878 | -7/Waste | System corruption reached 10% 6905 | -7/Waste | Destroyed C-40 Crusher 6910 | -7/Waste | Spotted C-40 Crusher 6978 | -7/Waste | EMP discharged 7078 | -7/Waste | EMP discharged 7080 | -7/Waste | Destroyed C-40 Crusher 7118 | -7/Waste | Found Damper Plating 7149 | -7/Waste | Destroyed C-40 Crusher 7178 | -7/Waste | EMP discharged 7178 | -7/Waste | System corruption reached 30% 7226 | -7/Waste | Destroyed C-40 Crusher 7278 | -7/Waste | EMP discharged 7305 | -7/Waste | Discovered new exit (range 13) 7345 | -7/Waste | Destroyed C-40 Crusher 7378 | -7/Waste | EMP discharged 7403 | -7/Waste | Identified exit to Factory 7405 | -7/Waste | Entered Factory 7799 | -7/Factory | Found Powered Armor 7819 | -7/Factory | Destroyed 10 combat bots 8107 | -7/Factory | Discovered new exit (range 11) 8154 | -7/Factory | Identified exit to Lower Caves 8156 | -7/Factory | Entered Lower Caves 8443 | -7/Lower Caves | Build established: Scavenger-Skirmisher 8500 | -7/Lower Caves | Attracted the attention of an 0b10 checkpoint 8829 | -7/Lower Caves | Discovered new exit (range 11) 8844 | -7/Lower Caves | Identified exit to Lower Caves 8953 | -7/Lower Caves | Found Alien Artifact 8953 | -7/Lower Caves | Identified Core Expander 8953 | -7/Lower Caves | Installed Core Expander, added new Utility slot 9089 | -7/Lower Caves | Entered another Lower Caves area 9097 | -7/Lower Caves | Encountered a Warlord checkpoint 9137 | -7/Lower Caves | Learned Factory terminal intel 9241 | -7/Lower Caves | Build established: Scavenger-Mutant 9506 | -7/Lower Caves | Attracted the attention of an 0b10 checkpoint 9570 | -7/Lower Caves | Build established: Scavenger-Tank 9816 | -7/Lower Caves | Discovered new exit (range 12) 9834 | -7/Lower Caves | Identified exit to Data Miner 9836 | -7/Lower Caves | Entered Data Miner 9838 | -7/Data Miner | Discovered new exit (range 6) 9866 | -7/Data Miner | Met Data Miner 9892 | -7/Data Miner | Learned location of Section 7 (-2) 9892 | -7/Data Miner | Acquired the access code to Warlord's prototype stash 9918 | -7/Data Miner | Received God Mode back door access code from Data Miner 9949 | -7/Data Miner | Identified exit to Proximity Caves 9973 | -7/Data Miner | Entered Proximity Caves 10116 | -6/Proximity Caves | Spotted B-75 Beast 10125 | -6/Proximity Caves | Escorted by Enhanced Grunt 10226 | -6/Proximity Caves | Allies destroyed B-75 Beast 10574 | -6/Proximity Caves | Build established: Scavenger-Skirmisher 10613 | -6/Proximity Caves | Discovered new exit (range 6) 10621 | -6/Proximity Caves | Learned location of 2 exits from Factory 10630 | -6/Proximity Caves | Identified exit to Factory 10634 | -6/Proximity Caves | Entered Factory 10634 | -6/Factory | Accompanied by 1 ally 10634 | -6/Factory | Evolved 2 slots: Power x1, Utility x1 10635 | -6/Factory | Identified exit to Factory 10636 | -6/Factory | Loaded intel: 26 terminal locations 11595 | -6/Factory | Discovered exit to Factory (range 10) 11785 | -6/Factory | Discovered new exit (range 5) 11791 | -6/Factory | Identified exit to Lower Caves 12013 | -6/Factory | Fabricated Tiamat Missile Launcher (x1) 12289 | -6/Factory | Found Prototype Device 12500 | -6/Factory | Destroyed 9 combat bots 12654 | -6/Factory | Sucked down chute 12654 | -6/Factory | Entered Waste 12655 | -6/Waste | Met a frightened Derelict 12702 | -6/Waste | Destroyed C-40 Crusher 12725 | -6/Waste | Spotted C-40 Crusher 12731 | -6/Waste | Destroyed C-40 Crusher 12738 | -6/Waste | Spotted C-40 Crusher 12751 | -6/Waste | Destroyed C-40 Crusher 12758 | -6/Waste | Spotted C-40 Crusher 12765 | -6/Waste | Spotted C-40 Crusher 12767 | -6/Waste | Destroyed C-40 Crusher 12771 | -6/Waste | Destroyed C-40 Crusher 12793 | -6/Waste | Spotted C-40 Crusher 12818 | -6/Waste | Destroyed C-40 Crusher 12872 | -6/Waste | Warlord forces began an assault 13182 | -6/Waste | Discovered new exit (range 12) 13201 | -6/Waste | Build established: Gunner 13284 | -6/Waste | Identified exit to Factory 13295 | -6/Waste | Entered Factory 13295 | -6/Factory | Accompanied by 18 allies 13350 | -6/Factory | Identified Active Sensor Suite 13455 | -6/Factory | Fabricated Imp. Transmission Jammer (x1) 13636 | -6/Factory | Garrison activated, responded to threat 13645 | -6/Factory | First assault squad dispatched 13705 | -6/Factory | Identified exit to Garrison 13707 | -6/Factory | Entered Garrison 13707 | -6/Garrison | Accompanied by 9 allies 13871 | -6/Garrison | Destroyed 9 combat bots 13887 | -6/Garrison | Triggered checkpoint 13898 | -6/Garrison | Triggered checkpoint 14012 | -6/Garrison | Discovered exit to Factory (range 12) 14173 | -6/Garrison | Discovered exit to Factory (range 8) 14302 | -6/Garrison | Discovered exit to Factory (range 14) 14333 | -6/Garrison | Expanded RIF knowledge: Alert ID Control 14384 | -6/Garrison | Triggered checkpoint 14437 | -6/Garrison | Garrison Relay disabled 14678 | -6/Garrison | Triggered checkpoint 14782 | -6/Garrison | Build established: Scavenger-Tank 14899 | -6/Garrison | Garrison Relay disabled 15122 | -6/Garrison | Triggered checkpoint 15170 | -6/Garrison | Garrison Relay disabled 15252 | -6/Garrison | Entered Factory 15252 | -5/Factory | Accompanied by 1 ally 15252 | -5/Factory | Evolved 2 slots: Utility x2 15423 | -5/Factory | Incoming investigation squad redirected 15575 | -5/Factory | Build established: Scavenger-Skirmisher 15852 | -5/Factory | First assault squad dispatched 15872 | -5/Factory | Incoming assault squad redirected 16112 | -5/Factory | Incoming investigation squad redirected 16472 | -5/Factory | Incoming assault squad redirected 16712 | -5/Factory | Lost 3 parts (2n1u) 16769 | -5/Factory | Incoming assault squad redirected 16800 | -5/Factory | Discovered new exit (range 14) 16829 | -5/Factory | Identified exit to Upper Caves 16852 | -5/Factory | Garrison activated, responded to threat 16890 | -5/Factory | Entered Upper Caves 16913 | -5/Upper Caves | Encountered a Warlord checkpoint 17553 | -5/Upper Caves | Learned Factory emergency access door positions 17772 | -5/Upper Caves | Build established: Scavenger-Mutant 18249 | -5/Upper Caves | Discovered new exit (range 8) 18262 | -5/Upper Caves | Identified exit to Upper Caves 18264 | -5/Upper Caves | Entered another Upper Caves area 18513 | -5/Upper Caves | Build established: Scavenger-Skirmisher 18699 | -5/Upper Caves | Discovered new exit (range 14) 18756 | -5/Upper Caves | Attacked by a delusional Derelict stockpiling Unaware 18784 | -5/Upper Caves | Learned 4 Factory zone layouts 19113 | -5/Upper Caves | Build established: Scavenger-Mutant 19256 | -5/Upper Caves | Attracted the attention of an 0b10 checkpoint 19257 | -5/Upper Caves | Identified exit to Zhirov 19259 | -5/Upper Caves | Entered Zhirov 19259 | -5/Zhirov | Discovered new exit (range 3) 19297 | -5/Zhirov | Met Zhirov 19336 | -5/Zhirov | Learned location of Quarantine (-2) 19336 | -5/Zhirov | Learned location of Command (-1) 19355 | -5/Zhirov | Zhirov requested help retrieving the SGEMP Prototype 19390 | -5/Zhirov | Found Alien Artifact 19390 | -5/Zhirov | Identified Integrated Dissipator 19390 | -5/Zhirov | Installed Integrated Dissipator, increased core heat dissipation (+20) 19541 | -5/Zhirov | Found Alien Artifact 19729 | -5/Zhirov | Attacked by Zhirov 19760 | -5/Zhirov | Destroyed Svarog 19805 | -5/Zhirov | Destroyed Perun 19900 | -5/Zhirov | Found Corrupted Adv. Powered Armor 19980 | -5/Zhirov | Found Adv. Powered Armor 20023 | -5/Zhirov | Build established: Scavenger-Gunner 20148 | -5/Zhirov | Zhirov warped through subspace 20153 | -5/Zhirov | Zhirov detonated his lab 20153 | -5/Zhirov | Cloak Generator disabled 20845 | -5/Zhirov | Found Prototype Device 20845 | -5/Zhirov | Identified Exp. Thermal Shield 21076 | -5/Zhirov | Entered Proximity Caves 21184 | -4/Proximity Caves | Attracted the attention of an 0b10 outpost 21581 | -4/Proximity Caves | Build established: Scavenger-Skirmisher 21599 | -4/Proximity Caves | Discovered new exit (range 9) 21643 | -4/Proximity Caves | Entered Factory 21643 | -4/Factory | Evolved 2 slots: Propulsion x2 21644 | -4/Factory | Identified exit to Extension 22092 | -4/Factory | Repaired Adv. Powered Armor 22107 | -4/Factory | Repaired Adv. Powered Armor 22161 | -4/Factory | Repaired Nova Cannon 22221 | -4/Factory | Repaired Broken Enh. Fission Core? 22336 | -4/Factory | Found Prototype Hackware 22393 | -4/Factory | Repaired Enh. Biometal Leg 22394 | -4/Factory | Build established: Scavenger-Tank 22487 | -4/Factory | Repaired Cld. Plasma Rifle 22662 | -4/Factory | Discovered new exit (range 10) 22793 | -4/Factory | Entered Extension 22832 | -4/Extension | Rescued a captive Derelict 22835 | -4/Extension | Rescued a captive Derelict 23073 | -4/Extension | Rescued a captive Derelict 23088 | -4/Extension | Rescued A7 23430 | -4/Extension | Spotted B-86 Titan 23443 | -4/Extension | Allies destroyed B-86 Titan 23450 | -4/Extension | Spotted B-86 Titan 23460 | -4/Extension | Destroyed B-86 Titan 23543 | -4/Extension | First assault squad dispatched 23609 | -4/Extension | Discovered new exit (range 16) 23610 | -4/Extension | Discovered new exit (range 15) 23641 | -4/Extension | Entered Cetus 23641 | -4/Cetus | Accompanied by 8 allies (A7) 23646 | -4/Cetus | Acquired a Cetus Manufacturing Module code from A7 23658 | -4/Cetus | Spotted Cetus Guard 23658 | -4/Cetus | Spotted Cetus Guard 23663 | -4/Cetus | Spotted Cetus Guard 23667 | -4/Cetus | Spotted Cetus Guard 23676 | -4/Cetus | Allies destroyed Cetus Guard 23678 | -4/Cetus | Destroyed Cetus Guard 23681 | -4/Cetus | Allies destroyed Cetus Guard 23682 | -4/Cetus | Allies destroyed Cetus Guard 23772 | -4/Cetus | System corruption reached 10% 23864 | -4/Cetus | Build established: Scavenger-Gunner 23880 | -4/Cetus | Started Cetus Manufacturing Module 23901 | -4/Cetus | Escorted A7 to Cetus Mainframe 23905 | -4/Cetus | Manufactured an Enhanced Grunt 23930 | -4/Cetus | Manufactured an Enhanced Grunt 23931 | -4/Cetus | Discovered new exit (range 16) 23955 | -4/Cetus | Manufactured an Enhanced Grunt 23962 | -4/Cetus | Spotted Cetus Guard 23962 | -4/Cetus | Spotted Cetus Guard 23970 | -4/Cetus | Destroyed Cetus Guard 23970 | -4/Cetus | Spotted Cetus Guard 23971 | -4/Cetus | Spotted Cetus Guard 23975 | -4/Cetus | Allies destroyed Cetus Guard 23980 | -4/Cetus | Manufactured an Enhanced Grunt 23981 | -4/Cetus | Allies destroyed Cetus Guard 23983 | -4/Cetus | Allies destroyed Cetus Guard 24002 | -4/Cetus | Discovered new exit (range 15) 24005 | -4/Cetus | Manufactured an Enhanced Grunt 24011 | -4/Cetus | Met Revision 17 24103 | -4/Cetus | Cetus Manufacturing Module disabled 24154 | -4/Cetus | Entered Archives 24154 | -4/Archives | Accompanied by 4 allies (A7) 24159 | -4/Archives | Received a hacking code to weaken MAIN.C 24211 | -4/Archives | Discovered new exit (range 16) 24268 | -4/Archives | Discovered new exit (range 15) 24684 | -4/Archives | Build established: Scavenger-Mutant 27175 | -4/Archives | Entered Hub_04(d) 27273 | -4/Hub_04(d) | Discovered new exit (range 16) 27326 | -4/Hub_04(d) | Discovered new exit (range 16) 27361 | -4/Hub_04(d) | Incoming investigation squad redirected 27531 | -4/Hub_04(d) | Network Hub disabled 27534 | -4/Hub_04(d) | Identified exit to Research 27535 | -4/Hub_04(d) | Entered Research 27535 | -3/Research | Evolved 2 slots: Power x1, Utility x1 27537 | -3/Research | Identified Exp. Hacking Suite 27925 | -3/Research | Identified exit to Armory 27925 | -3/Research | Identified exit to Testing 28019 | -3/Research | Entered Testing 28090 | -3/Testing | System corruption reached 10% 28242 | -3/Testing | Found Prototype Protection 28251 | -3/Testing | Identified Hvy. Regenerative Plating 28252 | -3/Testing | Found Prototype Protection 28687 | -3/Testing | Found Prototype Ballistic Gun 28687 | -3/Testing | Identified Hyp. Multirail 28867 | -3/Testing | Spotted PG-6JBCK7AGKC 28876 | -3/Testing | Destroyed PG-6JBCK7AGKC 29150 | -3/Testing | Build established: Generator-Gunner 29283 | -3/Testing | Found Prototype Device 29283 | -3/Testing | Identified Exp. Hardlight Generator 29317 | -3/Testing | Found Prototype Device 29317 | -3/Testing | Identified Exp. EM Disruption Field 29550 | -3/Testing | Spotted Striker 29552 | -3/Testing | Spotted Striker 29577 | -3/Testing | Found Prototype Energy Cannon 29577 | -3/Testing | Identified Imp. Potential Cannon 29740 | -3/Testing | Found Prototype Energy Gun 29740 | -3/Testing | Identified Warp Gun 29832 | -3/Testing | Discovered new exit (range 11) 30055 | -3/Testing | Entered Research 30055 | -2/Research | Evolved 2 slots: Utility x2 30056 | -2/Research | Identified SHELL Armor 30095 | -2/Research | Identified Transdimensional Reconstructor 30117 | -2/Research | Build established: Generator-Mutant 30162 | -2/Research | Identified exit to Quarantine 30411 | -2/Research | Entered Quarantine 30527 | -2/Quarantine | Found Alien Reactor 30527 | -2/Quarantine | Identified Matter Drive 30652 | -2/Quarantine | Found Alien Artifact 30885 | -2/Quarantine | Found Alien Artifact 31015 | -2/Quarantine | Spotted Alpha 7 31061 | -2/Quarantine | Destroyed Alpha 7 31067 | -2/Quarantine | Found Prototype Processor 31067 | -2/Quarantine | Identified Exp. Targeting Computer 31128 | -2/Quarantine | Cryocooling Duct disabled 31143 | -2/Quarantine | Ambient heat levels rising (+20) 31143 | -2/Quarantine | Non-combat units ordered to evacuate 31182 | -2/Quarantine | Found Alien Artifact 31195 | -2/Quarantine | Found Alien Artifact 31465 | -2/Quarantine | Destroyed 7 combat bots 31535 | -2/Quarantine | Discovered new exit (range 11) 31602 | -2/Quarantine | Identified Core Reset Matrix 31602 | -2/Quarantine | Identified Dimensional Node Initializer 31602 | -2/Quarantine | Identified Subatomic Replicator 31602 | -2/Quarantine | Identified Hpw. Transdimensional Reconstructor 31676 | -2/Quarantine | Found Alien Slashing Weapon 31948 | -2/Quarantine | Spotted Fortress 32084 | -2/Quarantine | Discovered new exit (range 5) 32091 | -2/Quarantine | Entered Section 7 32105 | -2/Section 7 | Identified Sigix Broadsword 32333 | -2/Section 7 | Spotted B-90 Cyclops 32363 | -2/Section 7 | Warped through subspace 32390 | -2/Section 7 | Warped through subspace 32570 | -2/Section 7 | Discovered new exit (range 13) 32600 | -2/Section 7 | Initialized slip node 32886 | -2/Section 7 | Spotted Alpha 7 32947 | -2/Section 7 | Found Fusion Bomb Launcher 32950 | -2/Section 7 | Found Fusion Bomb Launcher 33152 | -2/Section 7 | Destroyed 9 combat bots 33184 | -2/Section 7 | Spotted Executioner 33186 | -2/Section 7 | Destroyed Executioner 33186 | -2/Section 7 | Spotted Executioner 33190 | -2/Section 7 | Destroyed Executioner 33209 | -2/Section 7 | Found Prototype Processor 33303 | -2/Section 7 | Door terminal overloaded 33327 | -2/Section 7 | Found Transdimensional Reconstructor 33331 | -2/Section 7 | Found Transdimensional Reconstructor 33354 | -2/Section 7 | Found Transdimensional Reconstructor 33503 | -2/Section 7 | Spotted B-99 Colossus 33570 | -2/Section 7 | Identified Exp. Core Analyzer 33591 | -2/Section 7 | First assault squad dispatched 33615 | -2/Section 7 | Found Alien Artifact 33615 | -2/Section 7 | Identified LRC Boosters 33615 | -2/Section 7 | Installed LRC Boosters, increased mass support (+10) 33684 | -2/Section 7 | Warped through subspace to slip node 33855 | -2/Section 7 | Warped through subspace to slip node 33865 | -2/Section 7 | Incoming assault squad redirected 33866 | -2/Section 7 | Entered Access 33866 | -1/Access | Evolved 2 slots: Power x1, Utility x1 33962 | -1/Access | Identified exit to Surface 34153 | -1/Access | Build established: Generator-Assassin 34866 | -1/Access | First assault squad dispatched 34890 | -1/Access | Incoming assault squad redirected 35037 | -1/Access | Destroyed 8 combat bots 35404 | -1/Access | Discovered new exit (range 10) 35422 | -1/Access | Identified exit to Command 35424 | -1/Access | Entered Command 35509 | -1/Command | Build established: Generator-Mutant 35524 | -1/Command | Spotted B-99 Colossus 36112 | -1/Command | Spotted M Guard 36112 | -1/Command | Spotted M Guard 36113 | -1/Command | Spotted Combat Programmer 36114 | -1/Command | Spotted Combat Programmer 36173 | -1/Command | Lost 3 parts (2p1u) 36174 | -1/Command | First assault squad dispatched 36203 | -1/Command | Incoming assault squad redirected 36238 | -1/Command | Destroyed Combat Programmer 36270 | -1/Command | System corruption reached 10% 36279 | -1/Command | Destroyed Combat Programmer 36305 | -1/Command | Destroyed M Guard 36311 | -1/Command | Found Prototype Device 36311 | -1/Command | Identified Thermal Barrier 36335 | -1/Command | Destroyed M Guard 36335 | -1/Command | All MAIN.C guards destroyed 36344 | -1/Command | Found Exp. Targeting Computer 36352 | -1/Command | Found Hvy. Regenerative Plating 36528 | -1/Command | Destroyed 8 combat bots 36752 | -1/Command | Met MAIN.C 36761 | -1/Command | 0b10 Conduit disabled 36764 | -1/Command | Hacked MAIN.C using A7's code 36810 | -1/Command | Destroyed MAIN.C Shell 36813 | -1/Command | MAIN.C activated Command garrisons 36901 | -1/Command | Destroyed MAIN.C 36930 | -1/Command | Discovered exit to Surface (range 25) 36930 | -1/Command | Discovered exit to Surface (range 107) 36930 | -1/Command | Extracted map data and part IDs from MAIN.C's data core 36930 | -1/Command | Spotted B-99 Colossus 37016 | -1/Command | Destroyed B-99 Colossus 37042 | -1/Command | Build established: Generator-Gunner 37117 | -1/Command | Destroyed 10 combat bots 37375 | -1/Command | Build established: Generator-Mutant 37456 | -1/Command | Found Gamma Refractor 37467 | -1/Command | Found Exp. System Purifier 37638 | -1/Command | Found Zero-point Reactor 37643 | -1/Command | Found Vortex Chain Reactor 37712 | -1/Command | Found Spectral Analyzer 39872 | -1/Command | Found Exp. Core Analyzer 39877 | -1/Command | Found Prototype Device 39877 | -1/Command | Identified Adv. Kinecellerator 40190 | -1/Command | Found Quantum Capacitor 42132 | -1/Command | Build established: Generator-Gunner 42141 | -1/Command | Used Subatomic Replicator to replicate Transdimensional Reconstructor 42361 | -1/Command | Warped through subspace to slip node 42361 | -1/Command | Discovered new exit (range 4) 42367 | -1/Command | Entered Access_0 42369 | -1/Access_0 | Met Architect 42372 | -1/Access_0 | Destroyed A8 42380 | -1/Access_0 | Architect warped through subspace 42422 | -1/Access_0 | Architect warped through subspace 42435 | -1/Access_0 | Build established: Generator-Mutant 42452 | -1/Access_0 | Architect warped through subspace 42483 | -1/Access_0 | Architect warped through subspace 42510 | -1/Access_0 | Architect warped through subspace 42518 | -1/Access_0 | Subspace Access Node disabled 42529 | -1/Access_0 | Subspace Access Node disabled 42531 | -1/Access_0 | Architect warped through subspace 42561 | -1/Access_0 | Architect warped through subspace 42587 | -1/Access_0 | Architect warped through subspace 42604 | -1/Access_0 | Architect warped through subspace 42649 | -1/Access_0 | Architect warped through subspace 42690 | -1/Access_0 | Architect warped through subspace 42710 | -1/Access_0 | A6 warped into view 42717 | -1/Access_0 | Destroyed A6 42732 | -1/Access_0 | Architect warped through subspace 42750 | -1/Access_0 | Core integrity fell below 50% 42750 | -1/Access_0 | Triggered Gamma Refractor 42750 | -1/Access_0 | Subspace Access Node disabled 42786 | -1/Access_0 | Lost 3 parts (1p2n) 42836 | -1/Access_0 | Core integrity fell below 20% 42838 | -1/Access_0 | Warped through subspace to slip node 42838 | -1/Access_0 | Discovered exit to Surface (range 8) 42848 | *** | Establishing 0b11! Last Messages --------------- 42829_ Penetrated by HV Slug. 42831_ Penetrated by Quantum Shear. 42832_ Penetrated by HV Slug. 42833_ Acquired Corrupted Hyp. Linear Accelerator. 42833_ Integrated Corrupted Hyp. Linear Accelerator (+3). 42833_ Knocked back. 42834_ Acquired 105 matter. 42834_ Penetrated by Quantum Shear. 42834_ HV Slug penetrates Architect. 42834_ Architect suffers critical hit (Destroy). 42834_ Destroyed Alien Energy Gun. 42835_ Acquired 2 matter. 42835_ Penetrated by HV Slug. 42835_ Knocked back. 42838_ Warped through subspace, drawn to slip node. 42838_ EXIT=FOUND: SURFACE 42839_ A0_RES: I have more important things to do than play hide-and-seek. Deal with this piece of junk if it returns. 42842_ Dropped Huge Storage Unit. 42846_ Dropped Hyp. Linear Accelerator. Map ----- +----------------------------------------------------+ | | | | | | | | | | | | | | | | | | | | | | | | | | | | | | | | | ?????????????????????????????????????????????????? | | ?????????????????????????????????????????????????? | | ?????????????????????????????????????????????????? | | ?????????????????????????????????????????????????? | | ?????????????????????????????????????????????????? | | ?????????????????????????????????????????????????? | | ????????????????????????###??????????????????????? | | ???????????????????????## ##?????????????????????? | | ???????????????????????# #?????????????????????? | | ???????????????????????# @ #?????????????????????? | | ??????????????????????## #?????????????????????? | | ??????????????????????# #?????????????????????? | | ??????????????????????# ##?????????????????????? | | ??????????????????????##] #?????????????????????? | | ??????????????????????#! #?????????????????????? | | ??????????????????????#!!!##?????????????????????? | | ??????????????????????#!!! #?????????????????????? | | ??????????????????????#!!!##?????????????????????? | | ??????????????????????## #??????????????????????? | | ???????????????????????####??????????????????????? | | ?????????????????????????????????????????????????? | | ?????????????????????????????????????????????????? | | ?????????????????????????????????????????????????? | | ?????????????????????????????????????????????????? | | ?????????????????????????????????????????????????? | | ?????????????????????????????????????????????????? | | ?????????????????????????????????????????????????? | | ?????????????????????????????????????????????????? | | ?????????????????????????????????????????????????? | | ?????????????????????????????????????????????????? | | ?????????????????????????????????????????????????? | | ?????????????????????????????????????????????????? | | ?????????????????????????????????????????????????? | | ?????????????????????????????????????????????????? | +----------------------------------------------------+ Best States ------------- Heat Dissipation 162 Coolant Potential 120 Energy Generation 171 Energy Capacity 1475 Matter Stores 300 Matter Capacity 800 Sight Range 24 Robot Scan Range 20 Terrain Scan Range 16 Terrain Scan Density 210 Jamming Range 14 Cloak Strength 4 Power Amplification 70 EM Shielding 2 Armor Coverage 1800 Resistance: TH 50 Resistance: EM 90 Power Shielding 33 Utility Shielding 66 Weapon Cycling 25 Phase Shifting 15 Evasion (%) 55 Targeting Accuracy 20 Core Analysis 9 Armor Integrity Analysis 40 Recoil Reduction 6 Particle Charging 30 Offensive Hacking 20 Defensive Hacking 14 Relay Coupler Types 1 Relay Coupler Value 26 Item Schematics ----------------- Tiamat Missile Launcher | -7/Factory | Scanalyzed Combat Drone Bay | -7/Data Miner | Free Lgt. Regenerative Plating | -7/Data Miner | Free Cld. Cesium-ion Thruster | -7/Data Miner | Free Thermal Defense Suite | -7/Data Miner | Free Prc. Rocket Launcher | -7/Data Miner | Free Antigrav System | -7/Data Miner | Free Imp. Transmission Jammer | -7/Data Miner | Free Enh. Gauss Cannon | -7/Data Miner | Free Matter Compressor | -7/Data Miner | Free Variable Charge Gun | -7/Data Miner | Free Recoil Nullifier | -7/Data Miner | Free Adv. Medium Treads | -7/Data Miner | Free Adv. Datajack | -7/Data Miner | Free Assault Drone Bay | -5/Zhirov | Free Exp. Heat Sink | -5/Zhirov | Free Exp. Optical Array | -5/Zhirov | Free Imp. Arc Thrower | -5/Zhirov | Free Biometal Heavy Treads | -3/Research | Hacked Hvy. Proton Cannon | -3/Testing | Archive Centrium Heavy Armor Plating | -3/Testing | Archive Robot Schematics ------------------ M-22 Extractor | -7/Data Miner | Free X-67 Chaingunner | -7/Data Miner | Free B-48 Gladiator | -7/Data Miner | Free G-50 Soldier | -7/Data Miner | Free R-06 Scavenger | -3/Testing | Archive B-74 Champion | -3/Testing | Archive A-02 Transporter | -3/Testing | Archive Fabricated ------------ Tiamat Missile Launcher | x1 | -6/Factory Imp. Transmission Jammer | x1 | -6/Factory Alien Tech Used ----------------- Core Expander Integrated Dissipator Matter Drive Sigix Broadsword Transdimensional Reconstructor High-powered Transdimensional Reconstructor Dimensional Node Initializer LRC Boosters Subatomic Replicator Achievements -------------- None Challenges ------------ None Game ------ Seed BiocellSniperMagmablaster Manual? 0 Play Time 06:33:37 Cumulative 610.8 hours Start 2022.04.24 @ 12:52:21 End 2022.04.24 @ 23:24:04 Sessions 1 Manual Loads 0 Difficulty Rogue Special Mode None Game No. 571 Rogue 571 Adventurer 0 Explorer 0 Win Type 1 Total 22 Types 10/4/4/1/1/0/1/1/0 Lore% 88 Gallery% 94 Achievement% 77 Wizard Run 0 Options --------- ASCII 0 Keyboard 0 Movement Mouse Keybinds 1 Fullscreen 2 Font 24/Smallcaps Map View 76x50 Tactical HUD 1 Map Filters NONE Filters NONE Steam 1 RUN: 75b9fb4c-0b44-4300-b4c2-5fa89046b10b